Cogmind - Beta 16.1 @@@ ROGUE MODE // 2026.02.10 @ 11:24:32 Player: Dwarfinator Result: Heading to fleet! Performance ------------- Evolutions (9) 4500 Regions Visited (33) 6600 Robots Destroyed (661) 3305 Value Destroyed (36933) 36933 Prototype IDs (403) 8060 Alien Tech Used (9) 1800 Bonus (87324) 87324 TOTAL SCORE: 148522 Bonus ------- Triggered High Security 1000 High Alert Combat Kills 30342 Follower Combat Kills 21691 Awakened Behemoth Slayer 1000 Met Data Miner 300 Met Imprinter 300 Triggered Deep Caves Wall 500 Exposed GOLEM Chamber 500 Met Zhirov 300 Met Warlord at Base 500 MAIN.C Attacked Warlord 500 Used Core Reset Matrix 3000 Met Warlord at Research 2000 Invited to Help at Command 2000 Scanned by Researcher 500 Recovered Sigix Corpse 2000 Destroyed MAIN.C Guards 500 Met MAIN.C 5000 Destroyed MAIN.C Shell 5000 Destroyed MAIN.C 10000 Win 3000 Friendly Fire -2609 Cogmind --------- Core Integrity 772/1600 Matter 300/300 Energy 1685/1700 System Corruption 74% Temperature Cool (8) Movement Treading (227) Ox1 Location To Fleet Rendezvous Parts ------- > --- POWER (2) -------- Vortex Chain Reactor > --- PROPULSION (5) --- Experimental Biometal Heavy Treads (fused) High-density Centrium Heavy Treads Experimental Biometal Medium Treads > --- UTILITY (12) ----- Advanced Coolant Injector (fused) Advanced Coolant Injector (fused) Huge Storage Unit Assembled Biocell Array Precision Matter Filter Advanced Kinecellerator Centrium Light Armor Plating Centrium Light Armor Plating Heavy Regenerative Plating Advanced Component Analysis Suite (fused) Experimental Field Recycling Unit > --- WEAPON (6) ------- Heavy Quantum Rifle Helical Railgun Multirail Heavy Hardcell Cannon Graviton Cannon > --- INVENTORY (25) --- Enhanced Armored Heavy Treads Enhanced Biometal Leg High-density Centrium Leg Experimental Biometal Leg Experimental VSS Leg Experimental Heat Sink Lightpack 2.0 Experimental Energy Well (600) Experimental Energy Well (0) Active Sensor Suite Experimental Target Analyzer Centrium Medium Armor Plating Medium Regenerative Plating Concept Hardlight Director Enhanced Hardcell Cannon Compact Linear Accelerator Plasma Lance Experimental Jetlance Experimental Jetlance Sigix Corpse Peak State ------------ > --- POWER ------------ Vortex Chain Reactor > --- PROPULSION ------- Experimental VSS Leg Concept Biometal Exoskeleton Concept Biometal Exoskeleton > --- UTILITY ---------- Experimental Coolant Injector Lightpack 2.0 Advanced Matter Compressor Concept Weapon Articulator Experimental Reaction Control System Medium Regenerative Plating Experimental EM Shield Experimental Force Field GOLEM Unit > --- WEAPON ----------- Concept Variable Chargecaster Concept Variable Chargecaster Concept XC Strikerail Concept XC Strikerail Concept XC Strikerail Concept Deflector Sword > --- INVENTORY -------- Vortex Chain Reactor Experimental Heavy Siege Treads Experimental Armored Exoskeleton Advanced Heat Sink Advanced Heat Sink Compact Battery Reaction Control System Layered Heavy Armor Plating Experimental EM Disruption Field Experimental EM Disruption Field Concept Hardlight Director Advanced Force Field Experimental Force Field Concept Energy Mantle Advanced Point Defense System Long-range Tractor Beam Experimental Field Recycling Unit Gamma Rifle Concept Helical Railcannon Concept Helical Railcannon Concept Helical Railcannon Z-bomb Delivery System Sigix Terminator Experimental Terror Saw Experimental Jetlance Sigix Corpse Sigix Corpse [Rating: 303] Favorites ----------- Power Zero-point Reactor Engine F-cell Engine Power Core Light Nuclear Core Reactor Zero-point Reactor Propulsion Assembled Alloy Leg Treads Advanced Heavy Siege Treads Leg Assembled Alloy Leg Wheel Compact Wheel Hover Unit Backup Propulsion I Flight Unit Concept Fieldthrust Drive Utility Lightpack 2.0 Device GOLEM Unit Storage Lightpack 2.0 Processor Experimental Core Analyzer Hackware System Mapper Protection Assembled Alloy Armor Artifact Phase Armor Weapon Helical Railgun Energy Gun Heavy Quantum Rifle Energy Cannon Enhanced Nova Cannon Ballistic Gun Helical Railgun Ballistic Cannon Enhanced Hardcell Cannon Launcher Gamma Bomb Array Special Weapon Molecular Deconstructor Impact Weapon Core Stripper Slashing Weapon Scythe Piercing Weapon CR-A16's Behemoth Slayer Special Melee Weapon 1B-0RG's Assimilator Build | -11 -10 -10 -10 -9 -8 -7 -7 -7 -7 -7 -6 -6 -6 -6 -6 -5 -5 -5 -5 -5 -4 -4 -4 -4 -4 -3 -3 -3 -2 -2 -2 -1 -1 ------- Run | Yrd Mat Min Exi Min Mat Fac Low Low Zio Dee Pro Fac Low Low Dat Pro Fac Upp Upp War Pro Fac Upp Upp Zhi Pro Res Tes Res Qua Frg Acc Com Slots Evolved 18 | . . . . . 4 2 . . . . . 2 . . . . 2 . . . . 2 . . . . 2 . 2 . . 2 . Power 1 | . . . . . . . . . . . . . . . . . 1 . . . . . . . . . . . . . . . . Propulsion 3 | . . . . . 1 . . . . . . . . . . . . . . . . . . . . . . . . . . 2 . Utility 10 | . . . . . 1 . . . . . . 2 . . . . 1 . . . . 2 . . . . 2 . 2 . . . . Weapon 4 | . . . . . 2 2 . . . . . . . . . . . . . . . . . . . . . . . . . . . Parts Attached 449 | 2 4 6 6 15 45 10 4 1 6 16 . 5 . . . 2 14 1 3 7 1 2 3 1 6 2 8 16 10 13 31 79 130 Power 33 | . . 3 1 5 2 . . . 1 1 . . . . . . 2 . 1 1 . . . . . . . 4 3 . . 4 5 Engine 16 | . . 3 . 5 2 . . . 1 1 . . . . . . 2 . . . . . . . . . . 2 . . . . . Core 1 | . . . 1 . . . . . . . . . . . . . . . . . . . . . . . . . . . . . . Reactor 16 | . . . . . . . . . . . . . . . . . . . 1 1 . . . . . . . 2 3 . . 4 5 Propulsion 81 | 2 . 1 3 6 18 3 . 1 1 1 . . . . . . 2 . . 1 . . . . . . 3 5 3 1 3 6 21 Treads 22 | 2 . 1 . 1 10 . . . . . . . . . . . 1 . . . . . . . . . . . 1 . . 2 4 Leg 28 | . . . 3 . . . . . . 1 . . . . . . 1 . . 1 . . . . . . . . . . 1 4 17 Wheel 28 | . . . . 5 7 3 . 1 1 . . . . . . . . . . . . . . . . . 3 5 2 1 . . . Hover 1 | . . . . . 1 . . . . . . . . . . . . . . . . . . . . . . . . . . . . Flight 2 | . . . . . . . . . . . . . . . . . . . . . . . . . . . . . . . 2 . . Utility 219 | . 3 . 2 . 12 3 4 . . 12 . 5 . . . 2 9 1 2 5 1 2 2 . 5 2 5 4 4 9 16 53 56 Device 128 | . 2 . . . 5 . 2 . . 1 . 5 . . . 1 5 1 1 3 1 . 1 . 3 . 3 2 3 7 9 37 36 Storage 22 | . . . 2 . 1 . 1 . . 4 . . . . . . 2 . 1 1 . . . . 1 . . . . . 1 2 6 Processor 27 | . 1 . . . 3 . . . . . . . . . . . 2 . . 1 . . . . . . . . 1 1 3 9 6 Hackware 7 | . . . . . . 2 . . . . . . . . . . . . . . . 2 . . . . 2 . . . . . 1 Protection 34 | . . . . . 3 1 1 . . 7 . . . . . 1 . . . . . . 1 . 1 2 . 2 . 1 2 5 7 Artifact 1 | . . . . . . . . . . . . . . . . . . . . . . . . . . . . . . . 1 . . Weapon 116 | . 1 2 . 4 13 4 . . 4 2 . . . . . . 1 . . . . . 1 1 1 . . 3 . 3 12 16 48 Energy Gun 15 | . . . . 1 3 . . . 1 . . . . . . . . . . . . . . . . . . 1 . . 3 3 3 Energy Cannon 19 | . . . . . 1 1 . . . 2 . . . . . . 1 . . . . . . . . . . . . . 3 1 10 Ballistic Gun 34 | . . . . 1 8 . . . . . . . . . . . . . . . . . 1 . . . . . . . 1 8 15 Ballistic Cannon 17 | . . . . 1 . . . . . . . . . . . . . . . . . . . . . . . . . . 1 4 11 Launcher 12 | . . . . 1 1 1 . . 1 . . . . . . . . . . . . . . . . . . 2 . . 1 . 5 Special Weapon 2 | . . . . . . . . . 1 . . . . . . . . . . . . . . . . . . . . 1 . . . Impact Weapon 1 | . . . . . . . . . . . . . . . . . . . . . . . . . . . . . . 1 . . . Slashing Weapon 7 | . 1 2 . . . . . . . . . . . . . . . . . . . . . . . . . . . 1 2 . 1 Piercing Weapon 6 | . . . . . . . . . 1 . . . . . . . . . . . . . . 1 . . . . . . 1 . 3 Special Melee Weapon 3 | . . . . . . 2 . . . . . . . . . . . . . . . . . . 1 . . . . . . . . Unidentified Prototypes 69 | . . . . . 2 1 . . 2 3 . . . . . . 7 . . 6 . 1 . . 4 . . 5 3 7 13 11 4 Corrupted Parts 24 | . . . . . . . . . . . . . . . . . . . . . . . . . . . . 1 . . . . 23 System Corruption 158 | . . . . . . . . . . . . . . . . . . . . . . . . . . . . 7 . . . . 151 Parts Lost 64 | . . . . 18 4 . . 2 2 1 . . . . . 1 . . . . . . . . . . . 2 . . 5 5 24 Power 7 | . . . . 4 . . . . . . . . . . . . . . . . . . . . . . . 1 . . . 1 1 Propulsion 12 | . . . . 4 . . . 2 2 . . . . . . . . . . . . . . . . . . 1 . . . . 3 Utility 23 | . . . . 6 1 . . . . 1 . . . . . 1 . . . . . . . . . . . . . . 2 1 11 Weapon 22 | . . . . 4 3 . . . . . . . . . . . . . . . . . . . . . . . . . 3 3 9 Highest Loss Streak 12 | . . . . 12 2 . . 1 1 1 . . . . . 1 . . . . . . . . . . . 1 . . 3 2 8 To Critical Strikes . | . . . . . . . . . . . . . . . . . . . . . . . . . . . . . . . . . . Average Backups 23 | 1 4 4 5 22 28 31 31 29 28 16 22 21 22 22 22 21 22 22 22 20 19 17 19 19 19 20 19 19 19 23 25 23 25 Power 1 | . . . . 2 1 1 1 1 . . . . . . . . . . . . . . . . . . . . . 1 1 1 3 Propulsion 3 | . . 2 1 7 6 5 6 4 3 1 . . . . . . . . . . . . . . . . . . . . 1 2 5 Utility 12 | . . . 2 10 13 17 16 16 16 12 21 20 20 20 20 18 18 17 17 16 16 14 16 16 15 16 15 14 13 12 11 13 9 Weapon 5 | 1 4 2 1 2 6 6 6 7 6 2 1 1 1 2 2 3 4 5 5 3 3 3 3 3 2 3 3 3 3 5 7 6 6 Tool/Special . | . . . . . . . . . . . . . . . . . . . . . . . . . . . . . . . . . . Unused Backups 1446 | 2 6 4 . 21 28 6 4 2 2 19 . . . . . 2 6 3 1 5 . . 1 . . . 1 4 4 10 15 22 1278 Power 261 | . . . . . 3 . . . . . . . . . . . . . . . . . . . . . . 1 . . . . 257 Propulsion 399 | . . 2 . 8 7 . . . . . . . . . . . . . . . . . . . . . . . 1 3 1 6 371 Utility 496 | . 1 1 . 10 7 3 2 . 1 19 . . . . . 2 5 3 1 4 . . 1 . . . 1 3 3 4 10 12 403 Weapon 263 | 2 5 1 . 3 10 3 2 2 1 . . . . . . . . . . 1 . . . . . . . . . 2 . 3 228 Tool/Special 27 | . . . . . 1 . . . . . . . . . . . 1 . . . . . . . . . . . . 1 4 1 19 Average Slot Usage (%) 69 | . 53 95 73 81 89 61 61 60 60 58 52 59 60 60 60 59 60 62 60 59 58 62 63 63 62 63 65 69 71 68 64 75 73 Engine 2 | . . 12 . 9 9 7 7 7 7 7 7 6 6 6 6 6 7 9 5 3 . . . . . . . 4 . . . . . Reactor 3 | . . . . . . . . . . . . . . . . . . . 1 2 5 5 5 5 5 5 4 2 6 4 4 4 6 Treads 1 | . 27 27 7 . 2 . . . . 6 . . . . . . . . . . . . . . . . . . . . . . 1 Leg 10 | . . . 18 3 . . . . . 7 23 20 20 20 20 20 16 17 17 17 17 15 15 15 15 15 12 . . . . 10 11 Wheel 4 | . . . . 24 23 23 23 22 22 8 . . . . . . . . . . . . . . . . 1 13 12 13 12 . . Device 14 | . 20 27 . . 4 5 1 1 1 . . 12 13 13 13 6 13 11 9 8 5 10 10 10 15 10 14 11 18 16 17 23 20 Storage 8 | . . . 9 13 8 7 7 7 7 7 7 6 6 6 6 6 5 5 6 10 16 12 10 10 8 10 8 10 9 11 10 8 9 Processor 1 | . . . . . 5 . . . . . . . . . . . 1 5 5 2 . . . . . . . . . 3 1 1 1 Protection 3 | . . . . . . . 5 5 5 4 . . . . . 5 1 . . . . . 2 5 1 4 4 4 7 5 2 4 4 Energy Gun 1 | . . . . 4 . . . . 1 . . . . . . . . . . . . . . . . . . . . . . 2 3 Ballistic Gun 5 | . . . . . 29 1 . . . . . . . . . . . . . . . . 4 . 3 5 . . . . . 10 8 Ballistic Cannon 1 | . . . . . . . . . . . . . . . . . . . . . . . . . . . . . . . . 5 3 Slashing Weapon 1 | . 4 26 26 19 4 6 4 7 3 . . . . . . . . . . . . . . . . . . . . . . 3 . Piercing Weapon 1 | . . . . . . . . . 1 6 7 6 6 6 6 6 5 5 5 5 5 5 . 4 1 . 3 3 3 4 . . . Special Melee Weapon 2 | . . . . . . 7 7 7 6 3 6 6 6 6 6 5 4 5 5 5 5 5 5 5 4 5 4 4 4 3 3 . . Peak Build Rating 303 | 2 5 12 22 22 37 91 93 93 97 161 159 168 168 173 173 177 186 186 192 210 210 223 222 218 223 222 235 214 232 252 290 303 277 Average Rating 180 | 1 3 11 17 16 29 88 90 91 81 86 150 165 167 168 173 176 180 183 186 199 209 221 217 217 207 218 229 200 224 244 264 268 214 On Entrance 148 | . . . 1 22 9 31 88 93 91 96 159 159 167 168 173 173 177 186 181 192 210 209 222 215 218 222 218 209 206 228 252 210 260 Avg Prop Armor Cover (%) 6 | 41 37 37 15 8 10 . . . 8 10 . . . . . . . . . . . . . . . . . . . . . 2 2 Naked Turns 96 | . . 2 94 . . . . . . . . . . . . . . . . . . . . . . . . . . . . . . Heaviest Build 286 | . 3 10 210 215 224 272 279 278 286 279 75 80 80 80 79 83 87 84 94 108 111 112 117 117 117 125 129 140 148 143 193 126 220 Greatest Support 215 | 40 40 40 35 35 66 48 48 48 36 88 88 88 88 88 88 88 88 83 83 85 85 85 85 85 85 85 85 48 42 48 48 146 215 Greatest Overweight (x) 22 | . . . 17 20 22 6 5 10 14 13 . . . . . . 1 1 1 1 1 1 1 1 1 1 8 4 8 3 4 1 5 Average Overweight (x) 1 | . . . 1 6 5 5 5 6 7 3 . . . . . . . . . . 1 1 1 1 . 1 1 2 3 2 2 . . Largest Inventory Capacity 40 | 5 5 5 35 35 35 35 35 35 35 40 40 40 40 40 40 40 40 40 40 40 40 40 40 40 40 40 40 40 40 40 40 40 40 Average Capacity 36 | 5 5 5 18 34 32 35 35 35 35 28 40 40 40 40 40 40 40 40 40 40 40 40 40 40 40 40 40 40 40 40 40 40 36 Most Carried 40 | 4 5 5 11 35 35 35 35 35 35 40 40 40 40 40 40 40 40 38 37 40 40 40 40 40 40 40 40 40 40 40 40 40 40 Average Carried 30 | 1 4 4 7 29 30 34 34 33 34 24 40 39 39 40 40 39 39 36 35 38 40 38 40 39 39 40 39 39 38 39 36 29 27 Final Capacity 40 | 5 5 5 35 5 35 35 35 35 35 40 40 40 40 40 40 40 40 40 40 40 40 40 40 40 40 40 40 40 40 40 40 40 40 Final Carried 40 | 5 5 5 11 5 35 35 35 34 33 40 40 40 40 40 40 40 38 35 36 40 40 40 40 40 40 40 40 40 40 40 34 40 39 Class Distribution -------------------- 51% | Hauler-Mutant 24% | Hauler-Executioner 5% | Mutant 4% | Tank 4% | Scavenger-Executioner Dominant Class ---------------- Mutant | -10/Materials Mutant | -10/Mines Mutant | -10/Exiles Hauler-Mutant | -9/Mines Hauler-Gunner | -8/Materials Hauler-Mutant | -7/Factory Hauler-Mutant | -7/Lower Caves Hauler-Mutant | -7/Lower Caves Hauler-Mutant | -7/Zion Mutant | -7/Deep Caves Hauler-Mutant | -6/Proximity Caves Hauler-Mutant | -6/Factory Hauler-Mutant | -6/Lower Caves Hauler-Mutant | -6/Lower Caves Hauler-Mutant | -6/Data Miner Hauler-Mutant | -5/Proximity Caves Hauler-Mutant | -5/Factory Hauler-Mutant | -5/Upper Caves Hauler-Mutant | -5/Upper Caves Hauler-Mutant | -5/Warlord Hauler-Mutant | -4/Proximity Caves Hauler-Mutant | -4/Factory Hauler-Mutant | -4/Upper Caves Hauler-Mutant | -4/Upper Caves Hauler-Mutant | -4/Zhirov Hauler-Mutant | -3/Proximity Caves Hauler-Mutant | -3/Research Hauler-Mutant | -3/Testing Hauler-Mutant | -2/Research Hauler-Mutant | -2/Quarantine Hauler-Mutant | -2/Protoforge Hauler-Executioner | -1/Access Hauler-Executioner | -1/Command Resources | -11 -10 -10 -10 -9 -8 -7 -7 -7 -7 -7 -6 -6 -6 -6 -6 -5 -5 -5 -5 -5 -4 -4 -4 -4 -4 -3 -3 -3 -2 -2 -2 -1 -1 ----------- Run | Yrd Mat Min Exi Min Mat Fac Low Low Zio Dee Pro Fac Low Low Dat Pro Fac Upp Upp War Pro Fac Upp Upp Zhi Pro Res Tes Res Qua Frg Acc Com Matter Collected 47199 | 210 30 172 120 1035 3342 605 1594 1403 1431 3040 272 275 10 252 . 40 986 64 1560 574 1704 182 425 99 230 418 677 3219 642 1343 2407 8437 10401 Remotely 6232 | . . . . . 522 333 627 . 394 . . . . . . . . . . . . . . . . . . . . . . 3042 1314 Salvage Created 48329 | 56 . 314 376 1294 2387 375 177 478 243 2027 . 212 61 232 . 203 251 . 109 . . 27 40 57 267 . 187 1155 21 298 1163 12933 23386 Parts 1584 | 9 . 31 6 59 130 15 5 19 31 37 . 30 2 7 . 3 20 . 4 . . 5 4 . 8 . 11 33 2 . 35 259 819 Haulers Intercepted 6 | . . . . . 4 . . . . . . . . . . . . . . . . . . . . . . . . . . 2 . Recyclers Shooed 9 | 1 . . . 1 4 . . . . . . . . . . . 1 . . . . . . . . . . 1 . . . . 1 Parts Field Recycled 69 | . . . . . . . 18 25 13 . . . . . . . . . . . . . . . . . . . . . . 13 . Retrieved Matter 1127 | . . . . . . . 200 333 93 . . . . . . . . . . . . . . . . . . . . . . 501 . Parts Self-Destructed 444 | . . . . . . . 43 24 . . 52 . 28 23 . 26 . 47 56 . 62 . 10 36 5 32 . . . . . . . Prevented 9 | . . . . . . . 3 . . . . . . . . . . . 6 . . . . . . . . . . . . . . Parts Restored 6 | . . . . . . . . . . . . . . . . . . . . . . . . . . . . . . . 5 1 . Faulty 6 | . . . . . . . . . . . . . . . . . . . . . . . . . . . . . . . 5 1 . Kills | -11 -10 -10 -10 -9 -8 -7 -7 -7 -7 -7 -6 -6 -6 -6 -6 -5 -5 -5 -5 -5 -4 -4 -4 -4 -4 -3 -3 -3 -2 -2 -2 -1 -1 ------- Run | Yrd Mat Min Exi Min Mat Fac Low Low Zio Dee Pro Fac Low Low Dat Pro Fac Upp Upp War Pro Fac Upp Upp Zhi Pro Res Tes Res Qua Frg Acc Com Combat Hostiles Destroyed 541 | . . 6 . 24 27 . . . 3 36 . 2 . . . 2 . . . . . . . . . . . 3 . 1 37 193 207 Melee 18 | . . 6 . 1 2 . . . . 6 . 2 . . . 1 . . . . . . . . . . . . . . . . . Guns 183 | . . . . . 25 . . . . . . . . . . 1 . . . . . . . . . . . 1 . . 1 84 71 Cannons 125 | . . . . . . . . . . . . . . . . . . . . . . . . . . . . . . . 13 105 7 AOE 123 | . . . . 23 . . . . 3 24 . . . . . . . . . . . . . . . . . . . . 19 . 54 Classes Destroyed 34 | 2 . 2 . 3 8 . . 1 2 3 . . . . . 1 . . . . . . . . . . . 2 . 1 4 4 1 Worker 47 | . . . . 8 8 3 . . . . . . . . . . 1 . . . . . . . . . . 2 . . 2 3 20 Builder 23 | . . 2 . . 4 1 . . . . . 8 . . . . 3 . . . . 1 . . . . 2 . . . . 2 . Tunneler 19 | 7 . 2 . 4 3 . . . . . . 1 . . . . . . . . . . . . . . 1 . 1 . . . . Hauler 6 | . . . . . 4 . . . . . . . . . . . . . . . . . . . . . . . . . . 2 . Recycler 41 | 1 . 2 . 13 4 3 . . . . . . . . . . 1 . . . . . . . . . 1 5 . . . 1 10 Carrier 1 | . . . . . . . . . . . . . . . . . . . . . . . . . . . . . . . . . 1 Minesweeper 3 | . . . . . . . . 1 . . . . . . . . . . 1 . . . 1 . . . . . . . . . . Mechanic 28 | . . . . . 1 1 . . . . . . . . . . . . . . . . . . . . . 1 . . 2 13 10 Operator 4 | . . . . . 4 . . . . . . . . . . . . . . . . . . . . . . . . . . . . Drone 10 | . . . . . . . . . . . . . . . . 1 . . . . . . . . . . . . . . 9 . . Watcher 5 | . . . . . . . . . . . . . . . . . . . . . . . . . . . . . . . 1 . 4 Swarmer 21 | . . 6 . 5 . . . . . . . 2 . . . 1 . . . . . . . . . . . . . . . 2 5 Saboteur 25 | . . . . . . . . . . . . . . . . . . . . . . . . . . . . . . . . 15 10 Grunt 181 | . . . . . 15 . . . . . . . . . . . . . . . . . . . . . . 1 . . 10 70 85 Brawler 30 | . . . . . 2 . . . . . . . . . . . . . . . . . . . . . . 1 . . 2 12 13 Duelist 35 | . . . . . 1 . . . . . . . . . . . 1 . . . . . . . . . . . . . 2 14 17 Protector 17 | . . . . . . . . . . . . . . . . . . . . . . . . . . . . . . . 1 4 12 Sentry 18 | . . . . . 7 . . . . . . . . . . . . . . . . . . . . . . . . . 2 5 4 Specialist 4 | . . . . . . . . . . . . . . . . . . . . . . . . . . . . 1 . . 1 . 2 Hunter 21 | . . . . . 1 . . . . . . . . . . . . . . . . . . . . . . . . . . 7 13 Programmer 53 | . . . . . . . . . . . . . . . . . . . . . . . . . . . . . . . 4 34 15 Heavy 4 | . . . . . 1 . . . . . . . . . . . . . . . . . . . . . . . . . . 1 2 Behemoth 3 | . . . . . . . . . . . . . . . . . . . . . . . . . . . . . . . . 1 2 M Guard 2 | . . . . . . . . . . . . . . . . . . . . . . . . . . . . . . . . . 2 Hotshot 3 | . . . . . . . . . . . . . . . . . . . . . . . . . . . . . . . 3 . . Combat Programmer 2 | . . . . . . . . . . . . . . . . . . . . . . . . . . . . . . . . . 2 Investigator 5 | . . . . . . . . . . . . . . . . . . . . . . . . . . . . 1 . . . 2 2 Striker 24 | . . . . . . . . . . . . . . . . . . . . . . . . . . . . . . . . 16 8 Executioner 24 | . . . . . . . . . . . . . . . . . . . . . . . . . . . . . . . . 11 13 Fortress 1 | . . . . . . . . . . . . . . . . . . . . . . . . . . . . . . 1 . . . V-Series 3 | . . . . . . . . . . . . . . . . . . . . . . . . . . . . . . . 3 . . Zionite 17 | . . . . . . . . . 17 . . . . . . . . . . . . . . . . . . . . . . . . Z-Technician 2 | . . . . . . . . . . 2 . . . . . . . . . . . . . . . . . . . . . . . Z-Light 3 | . . . . . . . . . . 3 . . . . . . . . . . . . . . . . . . . . . . . Packrat 2 | . . . . . . . . . . . . . . 1 . . . . . . . . . 1 . . . . . . . . . Assembler 1 | . . . . . . . . . . 1 . . . . . . . . . . . . . . . . . . . . . . . Assembled 45 | . . . . 19 . . . . . 26 . . . . . . . . . . . . . . . . . . . . . . . Golem 11 | . . . . . . . . . . 11 . . . . . . . . . . . . . . . . . . . . . . . Thug 5 | . . . . 1 . . . 2 2 . . . . . . . . . . . . . . . . . . . . . . . . Savage 3 | . . . . . . . . 3 . . . . . . . . . . . . . . . . . . . . . . . . . Butcher 2 | . . . . . . . . 2 . . . . . . . . . . . . . . . . . . . . . . . . . Guerrilla 1 | . . . . . . . . . 1 . . . . . . . . . . . . . . . . . . . . . . . . Mutant 2 | . . . . . . . . . 1 . . . . . . . . . . . . . . . . . . . . . . 1 . Commander 2 | . . . . . . . 1 . . . . . . . . . . . 1 . . . . . . . . . . . . . . Best Kill Streak 46 | 2 . 2 . 22 4 3 . 1 7 25 . 4 . . . 1 2 . 1 . . 1 1 . . . 1 3 1 1 12 38 46 Combat Bots Only 44 | . . 2 . 19 4 . . . 2 24 . 2 . . . 1 . . . . . . . . . . . 2 . 1 11 35 44 Max Kills in Single Turn 13 | 1 . 1 . 4 2 1 1 1 2 13 . 1 . 1 . 1 1 . 1 . . 1 1 1 . . 1 1 1 1 5 5 6 Gunslinging 1 | . . . . . 1 . . . . . . . . . . . . . . . . . . . . . . . . . . 1 1 Exploded 12 | . . . . 4 . . . . 1 12 . . . . . . . . . . . . . . . . . . . . 5 . 6 Melee 1 | . . 1 . 1 1 . . . . 1 . 1 . . . 1 . . . . . . . . . . . . . . . . . Uniques/NPCs Destroyed 4 | . . . . . . . . . 2 . . . . . . . . . . . . . . . . . . . . . . . 2 NK-0LA (-7/Zion) Imprinter (-7/Zion) MAIN.C Shell (-1/Command) MAIN.C (-1/Command) Combat | -11 -10 -10 -10 -9 -8 -7 -7 -7 -7 -7 -6 -6 -6 -6 -6 -5 -5 -5 -5 -5 -4 -4 -4 -4 -4 -3 -3 -3 -2 -2 -2 -1 -1 -------- Run | Yrd Mat Min Exi Min Mat Fac Low Low Zio Dee Pro Fac Low Low Dat Pro Fac Upp Upp War Pro Fac Upp Upp Zhi Pro Res Tes Res Qua Frg Acc Com Hostile Shots Fired 2375 | . 12 29 . 39 91 21 5 18 60 46 16 28 11 13 . 34 62 4 14 2 4 1 . 6 . 4 27 40 . 2 222 820 744 Missed 1026 | . 7 12 . 7 27 8 4 3 22 14 10 14 8 2 . 15 42 2 10 1 1 1 . 2 . 1 10 15 . 1 80 398 309 Intercepted 3 | . . . . . . . . . . . . . . . . . . . . . . . . . . . . . 1 . . . 2 Deflected 59 | . . . . . . . . . . . . . . . . . . . . . . . . . . . . . . . . 36 23 Hits 1349 | . 5 17 . 32 64 13 1 15 38 32 6 14 3 11 . 19 20 2 4 1 3 . . 4 . 3 17 25 . 1 142 422 435 Melee 51 | . . . . 12 2 . . . 2 . . . . . . . . . . 1 . . . . . . . . . . 11 20 3 Projectile 1298 | . 5 17 . 20 62 13 1 15 36 32 6 14 3 11 . 19 20 2 4 . 3 . . 4 . 3 17 25 . 1 131 402 432 AOE 31 | . . . . 10 . . . . . . . . . . . . . . . 2 . . . . . . . 5 1 . 5 1 7 Critical Strikes 76 | . . 1 . 2 4 . . . 2 . . . . . . . . . . 1 . . . . . . 2 2 . . 12 29 21 Actively Blocked 7 | . . . . . . . . . . . . . . . . . . . . . . . . . . . . . . . . . 7 Part Disruptions 14 | . . . . . . . . . . . . . . . . . . . . . . . . . . . . . . . . 5 9 Damage Taken 22293 | . 54 221 . 986 1400 254 40 174 474 901 63 135 22 149 . 254 255 36 163 117 124 17 . 111 . 90 250 757 18 45 2980 4173 8030 Core 2167 | . 32 26 . 152 143 158 . 11 43 88 6 37 4 11 . 16 39 . . . 34 . . . . . 29 1 9 . 500 141 687 Absorbed by Shields 11702 | . . . . . . . . . . . . 41 10 53 . 46 95 13 40 33 37 5 . 33 . 28 97 263 16 44 1753 3411 5684 Reduced by Siege Mode 100 | . . . . . . . . . . . . . . . . . . . . . . . . . . . . . . . . 34 66 Redirected to Core 128 | . . . . . . . . . . . . . . . . . . . . . . . . . . . . . . . 128 . . Redirected to Shielding 261 | . . . . . . . . . . 261 . . . . . . . . . . . . . . . . . . . . . . . Ignored by Resistances 3155 | . . . . . . . . . . . . . . . . . . . . . . . . . . . . . . . 529 2626 . Regen/Repaired (Parts) 2597 | . . . . . 462 1 19 10 138 70 42 24 11 20 . 85 105 . 59 47 15 . . 12 . . 18 272 49 95 345 210 488 Core Remaining (%) 73 | 100 . . . 16 74 . . . . . 56 . . . . 92 . . . . 92 . . . . 100 . 97 . . 58 . 48 Volleys Fired 851 | . . . . 26 72 2 6 . 36 37 . . . . . 1 . . . . . . 15 . 13 . . 9 2 5 74 236 317 Largest 6 | . . . . 1 4 1 1 . 1 2 . . . . . 1 . . . . . . 1 . 1 . . 1 1 1 3 5 6 Hottest 525 | . . . . 36 100 65 65 . 33 250 . . . . . 250 . . . . . . 35 . 250 . . 80 30 7 222 304 525 Shots Fired 2407 | . . . . 26 276 2 6 . 36 43 . . . . . 1 . . . . . . 15 . 13 . . 9 2 5 74 891 1008 Gun 1588 | . . . . . 276 . . . . 1 . . . . . 1 . . . . . . 15 . 13 . . 6 . . 18 537 721 Cannon 657 | . . . . . . 2 6 . . 38 . . . . . . . . . . . . . . . . . . . . 49 354 208 Launcher 154 | . . . . 26 . . . . 33 4 . . . . . . . . . . . . . . . . . 3 2 . 7 . 79 Special 8 | . . . . . . . . . 3 . . . . . . . . . . . . . . . . . . . . 5 . . . Kinetic 1886 | . . . . . 275 . . . . . . . . . . . . . . . . . 15 . 12 . . 6 . . 2 791 785 Thermal 273 | . . . . . 1 2 6 . . 1 . . . . . 1 . . . . . . . . 1 . . . . . 53 86 122 Explosive 72 | . . . . 26 . . . . 33 4 . . . . . . . . . . . . . . . . . . 2 . 7 . . Electromagnetic 168 | . . . . . . . . . . 38 . . . . . . . . . . . . . . . . . 3 . . 12 14 101 Robot Hit Streak 80 | . . . . 1 13 . . . 8 12 . . . . . 2 . . . . . . 4 . 13 . . 15 . 2 15 80 45 Robot Miss Streak 11 | . . . . 3 8 . . . 2 1 . . . . . 4 . . . . . . 6 . . . . 2 . 2 11 3 4 Penetration Max 2 | . . . . . . . . . . . . . . . . . . . . . . . . . 1 . . . . . 1 2 2 Secondary Targets 33 | . . . . . 3 . . . . . . . . . . . . . . . . . . . . . . . . . . 10 20 Max Gunslinging Chain 2 | . . . . . 1 . . . . . . . . . . . . . . . . . . . . . . . . . . 2 1 Shots Hit Robots 1917 | . 3 19 26 44 212 14 5 26 14 80 . 15 1 12 . 8 12 . 6 . . 1 9 1 16 . 8 19 2 4 51 561 748 Core Hits 1889 | 4 1 9 9 58 79 5 4 8 28 100 . 6 . 6 . 3 5 . 3 . . . 2 1 3 . 3 25 1 . 42 422 1062 Critical Kills 59 | . . . . . . . . . . . . . . . . . . . . . . . 1 . 1 . . 1 . . 4 46 6 Critical Parts Destroyed 78 | . . . . . 1 . . . . . . . . . . . . . . . . . 1 . 1 . . 1 . . . 65 9 Critical Strikes 211 | . . 1 . 2 2 1 . 3 . 8 . 1 . 3 . 1 . . 1 . . . 2 1 6 . 1 4 . . 4 125 45 Meltdown 4 | . . . . . . . . . . . . . . . . . . . . . . . . . . . . . . . 4 . . Destroy 145 | . . . . . 1 . . . . . . . . . . . . . . . . . 2 . 6 . . 2 . . . 119 15 Blast 9 | . . . . . . . . . . . . . . . . . . . . . . . . . . . . . . . . 6 3 Sever 21 | . . 1 . 2 1 1 . 3 . . . . . . . . . . . . . . . . . . . . . . . . 13 Impale 32 | . . . . . . . . . . 8 . 1 . 3 . 1 . . 1 . . . . 1 . . 1 2 . . . . 14 Melee Attacks 829 | . 11 25 28 53 47 22 7 26 14 87 1 38 18 12 . 13 27 . 12 5 . 2 . 2 4 . 28 38 5 26 12 20 246 Kinetic 1 | . . . . . . . . . . . . . . . . . . . . . . . . . . . . . . 1 . . . Impact . | . . . . . . . . . . . . . . . . . . . . . . . . . . . . . . . . . . Slashing 428 | . 11 25 28 53 47 21 7 26 . . . . . . . . . . . . . . . . . . . . . . 11 20 179 Piercing 393 | . . . . . . . . . 12 86 1 38 18 12 . 13 27 . 12 5 . 2 . 2 1 . 28 38 5 25 1 . 67 Sneak Attacks 195 | . 1 10 . 32 31 13 3 26 3 10 . 13 . 8 . . 11 . 6 . . 1 . 1 3 . 8 10 2 . . 1 2 Combat Hostiles 1 | . . . . . . . . . . . . . . . . . . . 1 . . . . . . . . . . . . . . Follow-up Attacks 10 | . . 2 1 4 . . . . . . . . . . . . . . . . . . . . . . . . . . . . 3 Damage Inflicted 134821 | 42 105 977 1923 4062 4992 781 307 1294 1414 4625 . 915 65 808 . 455 782 . 405 . . 75 66 66 123 . 519 1477 144 . 11232 41248 55919 Guns 33337 | . . . . . 2830 . . . . . . . . . . 18 . . . . . . 66 . 123 . . 30 . . 174 15811 14285 Cannons 35549 | . . . . . . . . . . 783 . . . . . . . . . . . . . . . . . . . . 3658 25334 5774 Explosions 39832 | . . . . 1687 . . . . 1346 1573 . . . . . . . . . . . . . . . . . 617 . . 6738 . 27871 Melee 25865 | . 98 977 1923 2375 2162 781 307 1294 68 2269 . 915 65 808 . 437 782 . 405 . . 75 . 66 . . 519 830 144 . 662 103 7800 Ramming 238 | 42 7 . . . . . . . . . . . . . . . . . . . . . . . . . . . . . . . 189 Kinetic 59753 | . . . . . 2830 . . . . . . . . . . . . . . . . . 66 . 123 . . 30 . . 65 38768 17871 Thermal 16018 | . . . . . . . . . . . . . . . . 18 . . . . . . . . . . . . . . 3740 2162 10098 Explosive 11344 | . . . . 1687 . . . . 1346 1573 . . . . . . . . . . . . . . . . . . . . 6738 . . Electromagnetic 21603 | . . . . . . . . . . 783 . . . . . . . . . . . . . . . . . 617 . . 27 215 19961 Impact . | . . . . . . . . . . . . . . . . . . . . . . . . . . . . . . . . . . Slashing 14430 | . 98 977 1923 2375 2162 781 307 1294 . . . . . . . . . . . . . . . . . . . . . . 662 103 3748 Piercing 11435 | . . . . . . . . . 68 2269 . 915 65 808 . 437 782 . 405 . . 75 . 66 . . 519 830 144 . . . 4052 Highest Corruption 74 | . . . . . 1 . . . 1 1 1 . . . . . 1 1 2 2 . . . . . . . 10 . 1 9 11 74 Average Corruption 17 | . . . . . 1 . . . 1 1 1 . . . . . 1 1 1 2 . . . . . . . 3 . 1 6 8 36 Corruption Purged 112 | . . . . . . . . . . . . . . . . . . . . . . . . . . . . . . . . . 112 Corruption Blocked . | . . . . . . . . . . . . . . . . . . . . . . . . . . . . . . . . . . Effects 1100 | . . . . . 4 . . . 2 40 9 . . . . . 3 19 34 1 . . . . . . . 28 . 26 50 81 803 Message Errors 281 | . . . . . 2 . . . . 10 2 . . . . . . 5 11 . . . . . . . . 7 . 7 10 18 209 Matter Fused 265 | . . . . . 1 . . . . 7 2 . . . . . 1 6 10 . . . . . . . . 8 . 5 16 18 191 Heat Flow Errors 121 | . . . . . . . . . . 7 2 . . . . . . 3 4 . . . . . . . . 4 . 3 4 5 89 Energy Discharges 143 | . . . . . . . . . . 3 1 . . . . . 1 2 3 1 . . . . . . . 5 . 5 5 16 101 Parts Rejected 2 | . . . . . . . . . . . . . . . . . . . . . . . . . . . . . . . 2 . . Parts Fused 13 | . . . . . . . . . . 1 . . . . . . . . . . . . . . . . . . . . 1 1 10 Data Loss (minor) 161 | . . . . . 1 . . . 2 6 1 . . . . . 1 2 3 . . . . . . . . 2 . 4 6 9 124 Data Loss (major) 63 | . . . . . . . . . . 5 1 . . . . . . 1 2 . . . . . . . . 2 . 2 1 3 46 Misfires 12 | . . . . . . . . . . . . . . . . . . . . . . . . . . . . . . . . 2 10 Alerts 19 | . . . . . . . . . . 1 . . . . . . . . 1 . . . . . . . . . . . 1 1 15 Weapon Failures 20 | . . . . . . . . . . . . . . . . . . . . . . . . . . . . . . . 4 8 8 Overload Shots 9 | . . . . . . . . . . . . . . . . . . . . . . . . . . . . . . . . 1 8 Overflow Damage 6671 | . . 214 355 493 443 199 . 58 11 357 . 363 53 282 . 256 222 . . . . 35 . . . . 155 216 54 . 897 1021 987 Projectiles 1366 | . . . . . . . . . . 4 . . . . . . . . . . . . . . . . . . . . 309 1021 32 Explosions 1006 | . . . . 23 . . . . 11 15 . . . . . . . . . . . . . . . . . . . . 588 . 369 Melee 4299 | . . 214 355 470 443 199 . 58 . 338 . 363 53 282 . 256 222 . . . . 35 . . . . 155 216 54 . . . 586 Knockbacks 163 | . . . . . . . . . . . . . . . . . . . . . . . . . . . . . . . . 156 7 Impact 1 | . . . . . . . . . . . . . . . . . . . . . . . . . . . . . . . . . 1 Kinetic 130 | . . . . . . . . . . . . . . . . . . . . . . . . . . . . . . . . 124 6 Secondary 32 | . . . . . . . . . . . . . . . . . . . . . . . . . . . . . . . . 32 . Self-Inflicted Damage 164 | . . . . 112 . . . . 15 . . . . . . . . . . . . . . . . . . . . . . . 37 Shots 9 | . . . . 5 . . . . 1 . . . . . . . . . . . . . . . . . . . . . . . 3 Rammed 38 | 35 3 . . . . . . . . . . . . . . . . . . . . . . . . . . . . . . . . Targets Rammed 50 | 43 3 . . . . . . . . . . . . . . . . . . . . . . . . . . . . . . . 4 Kicked 4 | . . . . . . . . . . . . . . . . . . . . . . . . . . . . . . . . . 4 Crushed 8 | 8 . . . . . . . . . . . . . . . . . . . . . . . . . . . . . . . . . Highest Temperature 696 | . . 9 . . 235 16 84 . 1 236 181 . . . . 128 . 258 238 344 . . . . 132 . . 249 . 266 184 362 696 Average Temperature 85 | . . 9 . . 59 10 43 . 1 61 91 . . . . 67 . 117 95 174 . . . . 71 . . 92 . 107 54 97 78 Received Heat Transfer 1591 | . 30 45 . . 396 30 . 18 45 161 . 14 . 18 . . 10 6 4 . 6 . . 4 . 15 . 28 . . 176 255 330 Effects 8 | . . . . . . . . . . . . . . . . . . . . . . . . . . . . . . . . 1 7 Energy Bleed 2 | . . . . . . . . . . . . . . . . . . . . . . . . . . . . . . . . 1 1 Interference 3 | . . . . . . . . . . . . . . . . . . . . . . . . . . . . . . . . . 3 Matter Decay 1 | . . . . . . . . . . . . . . . . . . . . . . . . . . . . . . . . . 1 Short Circuit 1 | . . . . . . . . . . . . . . . . . . . . . . . . . . . . . . . . . 1 Damage (core) 1 | . . . . . . . . . . . . . . . . . . . . . . . . . . . . . . . . . 1 Siege Activations 2 | . . . . . . . . . . . . . . . . . . . . . . . . . . . . . . . . 1 1 Total Turns 58 | . . . . . . . . . . . . . . . . . . . . . . . . . . . . . . . . 25 33 Longest Duration 33 | . . . . . . . . . . . . . . . . . . . . . . . . . . . . . . . . 25 33 Martial Activations . | . . . . . . . . . . . . . . . . . . . . . . . . . . . . . . . . . . Shielding Activations 4 | . . . . . . . . . . . . . . . . . . . . . . . . . . . . . . . . . 4 Total Turns 530 | . . . . . . . . . . . . . . . . . . . . . . . . . . . . . . . . . 530 Longest Duration 282 | . . . . . . . . . . . . . . . . . . . . . . . . . . . . . . . . . 282 Robots Disrupted 4 | . . . . . . . . . . . . . . . . . . . . . . . . . . . . . . . . . 4 Combat Hostiles 3 | . . . . . . . . . . . . . . . . . . . . . . . . . . . . . . . . . 3 Robots Corrupted 93 | . . . . . . . . . . 6 . . . . . . . . . . . . . . . . . 3 . . . 1 83 Combat Hostiles 83 | . . . . . . . . . . 6 . . . . . . . . . . . . . . . . . 2 . . . . 75 Parts Fried 257 | . . . . . . . . . 1 . . . . . . . . . . . . . . . . . . 6 . . . 1 249 Impact Corruptions 9 | . . . . . . . . . . . . . . . . . . . . . . . . . . . . . . . . 7 2 Robots Melted 7 | . . . . . . . . . . . . . . . . . . . . . . . . . . . . . . . 4 3 . Combat Hostiles 7 | . . . . . . . . . . . . . . . . . . . . . . . . . . . . . . . 4 3 . Parts Melted 33 | . . . . . . . . . 2 . . . . . . . . . . . . . . . . . . . . . 2 23 6 Heat Transferred 12324 | . . . . . . . . . . . . . . . . 25 . . . . . . . . . . . . . . 2176 2329 7794 Parts Sabotaged 9 | . . . . . . . . . . . . . . . . . . . . . . . . . . . . . . . 1 6 2 Parts Stolen . | . . . . . . . . . . . . . . . . . . . . . . . . . . . . . . . . . . Parts Stripped 18 | . . . . . . . . . . . . . . . . . . . . . . . . . . . . . . 18 . . . Power Chain Reactions 45 | . . . . . . . . . . . . . . . . . . . . . . . . . . . . . . . . . 45 Alert | -11 -10 -10 -10 -9 -8 -7 -7 -7 -7 -7 -6 -6 -6 -6 -6 -5 -5 -5 -5 -5 -4 -4 -4 -4 -4 -3 -3 -3 -2 -2 -2 -1 -1 ------- Run | Yrd Mat Min Exi Min Mat Fac Low Low Zio Dee Pro Fac Low Low Dat Pro Fac Upp Upp War Pro Fac Upp Upp Zhi Pro Res Tes Res Qua Frg Acc Com Maximum Alert Level 5 | . . . . . 1 . . . . . . 3 . . . . 5 . . . . 1 . . . . 2 5 3 3 5 5 5 Low Security (%) 11 | 100 100 100 . 100 73 100 . . . . . . . . . . 37 . . . . 66 . . . . 19 . . . . . . Level 1 2 | . . . . . 26 . . . . . . 52 . . . . 4 . . . . 33 . . . . 18 18 . . 5 . . Level 2 2 | . . . . . . . . . . . . 27 . . . . 7 . . . . . . . . . 61 20 . 4 8 . . Level 3 8 | . . . . . . . . . . . . 20 . . . . 23 . . . . . . . . . . 50 100 95 7 . . Level 4 1 | . . . . . . . . . . . . . . . . . 9 . . . . . . . . . . 8 . . 29 . . Level 5 60 | . . . . . . . . . . . . . . . . . 17 . . . . . . . . . . 2 . . 49 . 85 High Security 14 | . . . . . . . . . . . . . . . . . . . . . . . . . . . . . . . . 99 14 Max Security . | . . . . . . . . . . . . . . . . . . . . . . . . . . . . . . . . . . Sterilizations 1 | . . . . . . . . . . . . . . . . . . . . . . . . . . . . . . . . 1 . Peak Influence 9861 | 5 127 100 . 114 361 159 . . . . . 956 . . . . 1975 . . . . 285 . . . . 654 1629 1018 1033 3454 7470 9861 Initial 4780 | . . 46 . . . 159 . . . . . 345 . . . . . . . . . 49 . . . . 100 364 912 567 535 1990 4780 Average 3090 | . 6 17 . 29 118 45 . . . . . 495 . . . . 721 . . . . 96 . . . . 423 759 918 920 1778 5680 8914 Influence Increases 35103 | 40 156 269 15 413 928 336 441 316 . . 910 925 413 390 . 624 2384 483 938 565 725 361 224 762 15 539 1510 2706 626 1463 3870 5540 6216 Destroy 0b10 Robot/C 18840 | . . 180 . 140 540 120 320 180 . . 520 360 240 200 . 320 1040 320 560 320 460 120 100 360 . 300 600 1220 180 500 1860 3820 3960 Destroy 0b10 Robot/NC 1380 | 40 . 30 15 125 140 55 5 5 . . . 70 5 5 . 15 105 . 5 10 10 5 5 . 15 . 50 80 5 5 90 125 360 Destroy Leader 2748 | . . 30 . 20 148 20 20 20 . . 60 96 20 30 . 40 180 50 40 . 50 20 10 30 . 20 164 166 50 142 226 524 572 Allied During Kill 6924 | . . 8 . 5 . 15 51 111 . . 330 318 148 140 . 249 708 113 333 220 205 138 109 372 . 219 447 992 181 428 1078 . 6 Successful Hack 200 | . 6 6 . . 26 18 . . . . . 33 . . . . 12 . . . . 5 . . . . . 33 . 43 18 . . Select Force Hacks 60 | . . . . . 30 . . . . . . . . . . . . . . . . . . . . . . . . 30 . . . Disable Machine 1395 | . 15 . . 15 30 45 . . . . . 15 . . . . 150 . . . . 15 . . . . 105 90 . 225 150 45 495 Anti-Garrison Action 550 | . . . . . . . . . . . . . . . . . . . . . . . . . . . . . 150 . 200 150 50 Destroy Structure 2001 | . . . . 93 14 18 . . . . . 33 . . . . 174 . . . . 28 . . . . 144 110 60 75 248 486 518 Partial Spotted 45 | . . . . . . . . . . . . . . . . . . . . . . . . . . . . . . 15 . 30 . Lose Combat Pursuer 960 | . 135 15 . 15 . 45 45 . . . . . . 15 . . 15 . . 15 . 30 . . . . . 15 . . . 360 255 Influence Decreases 24377 | 40 37 386 17 413 577 635 493 237 79 . 361 518 942 612 205 624 425 1376 975 1177 1064 234 429 482 295 390 1011 1731 1241 1519 1504 1388 2960 Entered New Map 9892 | . . 73 2 . . 192 20 . 79 . . 204 354 82 205 . . 726 203 1029 417 29 77 . 280 . 49 284 711 441 417 1328 2690 Time Decay 11523 | 40 37 313 15 383 557 384 400 197 . . 321 294 568 530 . 604 425 630 712 128 627 205 352 482 15 390 452 577 490 758 607 . 30 Lost Part 420 | . . . . 30 20 . . 10 . . . . . . . . . . . . . . . . . . . 20 . . 50 50 240 Lost Ally 892 | . . . . . . 59 73 30 . . 40 20 20 . . 20 . 20 60 20 20 . . . . . 60 100 40 20 280 10 . Purge Threat 1650 | . . . . . . . . . . . . . . . . . . . . . . . . . . . 450 750 . 300 150 . . Squads Dispatched 168 | . 3 1 . . 10 4 . . . . 1 2 . . . . 10 . 1 . . . . 1 . . 7 16 4 4 15 50 39 Investigation 11 | . 1 1 . . 3 . . . . . . . . . . . 1 . . . . . . 1 . . . 1 1 1 1 . . Extermination 17 | . . . . . . 2 . . . . . 1 . . . . 3 . . . . . . . . . 4 4 . . 3 . . Reinforcement 35 | . 2 . . . 4 2 . . . . . 1 . . . . 3 . . . . . . . . . 3 7 3 3 2 2 3 Assault 102 | . . . . . 2 . . . . . 1 . . . . . 3 . 1 . . . . . . . . 4 . . 8 47 36 Garrison 3 | . . . . . 1 . . . . . . . . . . . . . . . . . . . . . . . . . 1 1 . Intercept . | . . . . . . . . . . . . . . . . . . . . . . . . . . . . . . . . . . Searches Triggered . | . . . . . . . . . . . . . . . . . . . . . . . . . . . . . . . . . . Data Miner Redirects 1 | . . . . . . . . . . . . . . . . . . . . . . . . . . . . 1 . . . . . Construction Impeded 2 | . . . . . . . . . . . . . . . . . . . . . . . . . . . . . . . 2 . . Haulers Reinforced 7 | . . . . . . . . . . . . 1 . . . . 1 . . . . . . . . . . . 3 . . 2 . Active Scanning Responses . | . . . . . . . . . . . . . . . . . . . . . . . . . . . . . . . . . . Cargo Convoy Interrupts 1 | . . . . . . . . . . . . . . . . . 1 . . . . . . . . . . . . . . . . Stealth | -11 -10 -10 -10 -9 -8 -7 -7 -7 -7 -7 -6 -6 -6 -6 -6 -5 -5 -5 -5 -5 -4 -4 -4 -4 -4 -3 -3 -3 -2 -2 -2 -1 -1 --------- Run | Yrd Mat Min Exi Min Mat Fac Low Low Zio Dee Pro Fac Low Low Dat Pro Fac Upp Upp War Pro Fac Upp Upp Zhi Pro Res Tes Res Qua Frg Acc Com Distress Signals 45 | . 1 . . . 3 . . . . . . . . . . 1 2 . . 1 . . . . . . 1 1 12 1 2 5 15 Communications Jammed 98 | . . . . . . 8 . . . . . . . . . 1 22 . . . . . . . . . 9 27 . 5 26 . . Distress Signals 93 | . . . . . . 6 . . . . . . . . . . 20 . . . . . . . . . 9 27 . 5 26 . . Times Spotted 1226 | . 15 11 . 23 29 19 17 9 64 69 20 13 4 6 . 12 37 5 21 70 13 3 . 17 . 15 22 56 2 17 107 286 244 Peak Tracking Total 36 | . 11 3 . 5 4 4 6 3 8 36 6 4 1 3 . 5 7 1 5 12 6 2 . 6 . 7 3 6 1 4 12 20 24 Tactical Retreats 41 | . 2 1 . 3 . 2 1 . 1 . . . . 1 . . 1 . . 1 . 1 . . . . . 1 . . . 13 13 Traps | -11 -10 -10 -10 -9 -8 -7 -7 -7 -7 -7 -6 -6 -6 -6 -6 -5 -5 -5 -5 -5 -4 -4 -4 -4 -4 -3 -3 -3 -2 -2 -2 -1 -1 ------- Run | Yrd Mat Min Exi Min Mat Fac Low Low Zio Dee Pro Fac Low Low Dat Pro Fac Upp Upp War Pro Fac Upp Upp Zhi Pro Res Tes Res Qua Frg Acc Com Traps Triggered 26 | . 3 . . . . . . . . . . . . . . . 1 . . . . . . . . . 1 . . 3 1 3 14 Indirectly . | . . . . . . . . . . . . . . . . . . . . . . . . . . . . . . . . . . Trap Hack Attempts . | . . . . . . . . . . . . . . . . . . . . . . . . . . . . . . . . . . Triggered . | . . . . . . . . . . . . . . . . . . . . . . . . . . . . . . . . . . Disarmed . | . . . . . . . . . . . . . . . . . . . . . . . . . . . . . . . . . . Reprogrammed . | . . . . . . . . . . . . . . . . . . . . . . . . . . . . . . . . . . Reused . | . . . . . . . . . . . . . . . . . . . . . . . . . . . . . . . . . . Traps Extracted . | . . . . . . . . . . . . . . . . . . . . . . . . . . . . . . . . . . Installed . | . . . . . . . . . . . . . . . . . . . . . . . . . . . . . . . . . . Triggered . | . . . . . . . . . . . . . . . . . . . . . . . . . . . . . . . . . . Most Traps Carried 5 | . . . . 5 . . . . . . . . . . . . . . . . . . . . . . . . . . . . . Machines | -11 -10 -10 -10 -9 -8 -7 -7 -7 -7 -7 -6 -6 -6 -6 -6 -5 -5 -5 -5 -5 -4 -4 -4 -4 -4 -3 -3 -3 -2 -2 -2 -1 -1 ---------- Run | Yrd Mat Min Exi Min Mat Fac Low Low Zio Dee Pro Fac Low Low Dat Pro Fac Upp Upp War Pro Fac Upp Upp Zhi Pro Res Tes Res Qua Frg Acc Com Machines Disabled 117 | . 1 . . 1 2 3 1 . . 3 1 1 2 . . . 10 1 . . 1 1 . 1 1 . 7 7 1 15 14 8 35 Max in Single Turn 2 | . 1 . . 1 1 . 1 . . 1 . . 1 . . . . . . . . . . . 1 . 1 1 1 1 2 1 2 Garrison Access 9 | . . . . . 1 . . . . . . . . . . . . . . . . 1 . . . . . 1 2 1 1 2 . Phase Generator 1 | . . . . . . . . . . . . . . . . . . . . . . . . . . . . . . . . . 1 Machines Repaired . | . . . . . . . . . . . . . . . . . . . . . . . . . . . . . . . . . . Machines Dismantled . | . . . . . . . . . . . . . . . . . . . . . . . . . . . . . . . . . . Machines Sabotaged . | . . . . . . . . . . . . . . . . . . . . . . . . . . . . . . . . . . Overloaded Fab Kills . | . . . . . . . . . . . . . . . . . . . . . . . . . . . . . . . . . . Hacking | -11 -10 -10 -10 -9 -8 -7 -7 -7 -7 -7 -6 -6 -6 -6 -6 -5 -5 -5 -5 -5 -4 -4 -4 -4 -4 -3 -3 -3 -2 -2 -2 -1 -1 --------- Run | Yrd Mat Min Exi Min Mat Fac Low Low Zio Dee Pro Fac Low Low Dat Pro Fac Upp Upp War Pro Fac Upp Upp Zhi Pro Res Tes Res Qua Frg Acc Com Machines Accessed 111 | . 4 3 2 . 11 5 1 3 . . . 4 1 . 4 . 10 . 2 10 . 5 . 1 4 . 3 14 1 15 6 . 2 Terminals 58 | . 3 1 . . 7 2 . . . . . 2 . . . . 7 . . . . 4 . 1 . . 3 9 1 11 5 . 2 Fabricators 7 | . . . . . . 2 . . . . . 2 . . . . 2 . . . . . . . . . . 1 . . . . . Repair Stations 2 | . . . . . 2 . . . . . . . . . . . . . . . . . . . . . . . . . . . . Recycling Units 3 | . 1 . . . 1 1 . . . . . . . . . . . . . . . . . . . . . . . . . . . Scanalyzers 8 | . . . . . 1 . . . . . . . . . . . 1 . . . . . . . . . . 3 . 3 . . . Garrison Access 4 | . . . . . . . . . . . . . . . . . . . . . . 1 . . . . . 1 . 1 1 . . Total Hacks 280 | . 8 4 2 . 35 9 5 9 . . . 9 1 . 29 . 19 . 6 20 . 15 . 4 17 . 10 33 2 31 10 . 2 Successful 174 | . 1 3 2 . 20 4 5 9 . . . 5 1 . 29 . 4 . 6 20 . 9 . 4 17 . 3 16 . 12 4 . . Failed 104 | . 7 1 . . 14 5 . . . . . 4 . . . . 14 . . . . 6 . . . . 7 17 2 19 6 . 2 Catastrophic 21 | . 1 . . . 1 1 . . . . . 2 . . . . 3 . . . . 2 . . . . 3 2 1 2 1 . 2 Database Lockouts 2 | . . . . . 1 . . . . . . . . . . . 1 . . . . . . . . . . . . . . . . Manual 87 | . 5 3 1 . 7 4 1 . 4 . . 8 . . . . 10 . . 1 . 14 . . . . . 10 . 14 3 . 2 Terminals 136 | . 5 2 . . 17 4 . . . . . 7 . . . . 15 . . . . 14 . 4 . . 10 23 2 23 8 . 2 Fabricators 11 | . . . . . . 4 . . . . . 2 . . . . 3 . . . . . . . . . . 2 . . . . . Repair Stations 8 | . . . . . 8 . . . . . . . . . . . . . . . . . . . . . . . . . . . . Recycling Units 9 | . 3 . . . 5 1 . . . . . . . . . . . . . . . . . . . . . . . . . . . Scanalyzers 19 | . . . . . 5 . . . . . . . . . . . 1 . . . . . . . . . . 7 . 6 . . . Garrison Access 6 | . . . . . . . . . . . . . . . . . . . . . . 1 . . . . . 1 . 2 2 . . Terminal Hacks 135 | . 1 3 2 . 9 1 5 9 . . . 3 1 . 29 . 1 . 6 20 . 3 . 4 17 . 3 9 . 6 3 . . Record 53 | . . . 1 . . . 5 7 . . . . . . 11 . . . 5 13 . . . 4 5 . . . . 2 . . . Part Schematic 15 | . . . . . 2 . . . . . . . . . 9 . . . . . . . . . 4 . . . . . . . . Robot Schematic 6 | . . . . . . . . . . . . . . . 6 . . . . . . . . . . . . . . . . . . Robot Analysis 7 | . 1 1 . . . . . . . . . . . . . . . . . . . . . . 4 . . 1 . . . . . Prototype ID Bank 15 | . . . . . . . . . . . . . . . 3 . . . . 7 . 1 . . 4 . . . . . . . . Open Door 8 | . . 2 . . . . . 2 . . . . 1 . . . . . 1 . . . . . . . . 1 . 1 . . . Branch Access Points 3 | . . . . . . 1 . . . . . 1 . . . . . . . . . 1 . . . . . . . . . . . Emergency Access Points 1 | . . . . . 1 . . . . . . . . . . . . . . . . . . . . . . . . . . . . Alert Level 2 | . . . . . 1 . . . . . . . . . . . . . . . . . . . . . . . . 1 . . . Unreport Threat 11 | . . . . . . . . . . . . . . . . . . . . . . . . . . . 3 5 . 2 1 . . Locate Traps 5 | . . . . . 2 . . . . . . 1 . . . . 1 . . . . . . . . . . . . . 1 . . Recall Assault 1 | . . . . . . . . . . . . . . . . . . . . . . . . . . . . 1 . . . . . Hauler Manifests 4 | . . . . . 1 . . . . . . 1 . . . . . . . . . 1 . . . . . 1 . . . . . Zone Layout 2 | . . . . . 2 . . . . . . . . . . . . . . . . . . . . . . . . . . . . Proto ID Catalog 2 | . . . 1 . . . . . . . . . . . . . . . . . . . . . . . . . . . 1 . . Fabricator Hacks 2 | . . . . . . 1 . . . . . . . . . . . . . . . . . . . . . 1 . . . . . Network Status 1 | . . . . . . 1 . . . . . . . . . . . . . . . . . . . . . . . . . . . Load Schematic 1 | . . . . . . . . . . . . . . . . . . . . . . . . . . . . 1 . . . . . Repair Station Hacks 7 | . . . . . 7 . . . . . . . . . . . . . . . . . . . . . . . . . . . . Scan Component 3 | . . . . . 3 . . . . . . . . . . . . . . . . . . . . . . . . . . . . Repair 3 | . . . . . 3 . . . . . . . . . . . . . . . . . . . . . . . . . . . . Refit 1 | . . . . . 1 . . . . . . . . . . . . . . . . . . . . . . . . . . . . Recycling Unit Hacks 1 | . . . . . 1 . . . . . . . . . . . . . . . . . . . . . . . . . . . . Retrieve Components 1 | . . . . . 1 . . . . . . . . . . . . . . . . . . . . . . . . . . . . Scanalyzer 7 | . . . . . 2 . . . . . . . . . . . 1 . . . . . . . . . . 3 . 1 . . . Insert Component 1 | . . . . . 1 . . . . . . . . . . . . . . . . . . . . . . . . . . . . Analyze 1 | . . . . . 1 . . . . . . . . . . . . . . . . . . . . . . . . . . . . Retrieve Study 5 | . . . . . . . . . . . . . . . . . 1 . . . . . . . . . . 3 . 1 . . . Garrison Access Hacks 3 | . . . . . . . . . . . . . . . . . . . . . . 1 . . . . . 1 . 1 . . . Seal Access 3 | . . . . . . . . . . . . . . . . . . . . . . 1 . . . . . 1 . 1 . . . Unauthorized Hacks 19 | . . . . . 1 2 . . . . . 2 . . . . 2 . . . . 5 . . . . . 2 . 4 1 . . Terminals 13 | . . . . . . . . . . . . 2 . . . . 2 . . . . 5 . . . . . 1 . 3 . . . Botnet 9 | . . . . . . . . . . . . 1 . . . . 2 . . . . 2 . . . . . 1 . 3 . . . Disrupt 1 | . . . . . . . . . . . . 1 . . . . . . . . . . . . . . . . . . . . . Operators 1 | . . . . . . . . . . . . . . . . . . . . . . 1 . . . . . . . . . . . Skim 2 | . . . . . . . . . . . . . . . . . . . . . . 2 . . . . . . . . . . . Fabricators 3 | . . . . . . 2 . . . . . . . . . . . . . . . . . . . . . 1 . . . . . Liberate 1 | . . . . . . 1 . . . . . . . . . . . . . . . . . . . . . . . . . . . Haulers 1 | . . . . . . 1 . . . . . . . . . . . . . . . . . . . . . . . . . . . Recompile 1 | . . . . . . . . . . . . . . . . . . . . . . . . . . . . 1 . . . . . Repair Stations . | . . . . . . . . . . . . . . . . . . . . . . . . . . . . . . . . . . Recycling Units 1 | . . . . . 1 . . . . . . . . . . . . . . . . . . . . . . . . . . . . Tunnel 1 | . . . . . 1 . . . . . . . . . . . . . . . . . . . . . . . . . . . . Scanalyzers 1 | . . . . . . . . . . . . . . . . . . . . . . . . . . . . . . 1 . . . Extract 1 | . . . . . . . . . . . . . . . . . . . . . . . . . . . . . . 1 . . . Garrison Access 1 | . . . . . . . . . . . . . . . . . . . . . . . . . . . . . . . 1 . . Jam 1 | . . . . . . . . . . . . . . . . . . . . . . . . . . . . . . . 1 . . Data Cores Recovered 1 | . . . . . . . . . . . . . . . . . . . . . . . . . . . . 1 . . . . . Used 1 | . . . . . . . . . . . . . . . . . . . . . . . . . . . . 1 . . . . . Hacking Detections 72 | . 4 1 . . 10 5 . . . . . 3 . . . . 8 . . . . 4 . 1 . . 3 12 1 13 5 . 2 Full Trace Events 4 | . . . . . 1 . . . . . . . . . . . 1 . . . . . . 1 . . . . 1 . . . . Feedback Events . | . . . . . . . . . . . . . . . . . . . . . . . . . . . . . . . . . . Feedback Blocked . | . . . . . . . . . . . . . . . . . . . . . . . . . . . . . . . . . . Robot Schematics Acquired 15 | . . . . . . . . . . . . . . . 6 . . . . . . . . . . . . 5 . 3 1 . . Robots Built . | . . . . . . . . . . . . . . . . . . . . . . . . . . . . . . . . . . Authchips . | . . . . . . . . . . . . . . . . . . . . . . . . . . . . . . . . . . Time . | . . . . . . . . . . . . . . . . . . . . . . . . . . . . . . . . . . Total Robot Build Rating . | . . . . . . . . . . . . . . . . . . . . . . . . . . . . . . . . . . Part Schematics Acquired 38 | . . . . . 3 . . . . . . . . . 9 . . . . . . . . . 4 . . 13 . 8 1 . . Parts Built . | . . . . . . . . . . . . . . . . . . . . . . . . . . . . . . . . . . Authchips . | . . . . . . . . . . . . . . . . . . . . . . . . . . . . . . . . . . Time . | . . . . . . . . . . . . . . . . . . . . . . . . . . . . . . . . . . Total Part Build Rating . | . . . . . . . . . . . . . . . . . . . . . . . . . . . . . . . . . . Part Studies Acquired 5 | . . . . . . . . . . . . . . . . . 1 . . . . . . . . . . 3 . 1 . . . Parts Repaired 3 | . . . . . 3 . . . . . . . . . . . . . . . . . . . . . . . . . . . . Time 120 | . . . . . 120 . . . . . . . . . . . . . . . . . . . . . . . . . . . . Parts Recycled . | . . . . . . . . . . . . . . . . . . . . . . . . . . . . . . . . . . Recycled Matter . | . . . . . . . . . . . . . . . . . . . . . . . . . . . . . . . . . . Retrieved Matter . | . . . . . . . . . . . . . . . . . . . . . . . . . . . . . . . . . . Retrieved Components 9 | . . . . . 9 . . . . . . . . . . . . . . . . . . . . . . . . . . . . Parts Scanalyzed 1 | . . . . . 1 . . . . . . . . . . . . . . . . . . . . . . . . . . . . Part Schematics Acquired 1 | . . . . . 1 . . . . . . . . . . . . . . . . . . . . . . . . . . . . Parts Damaged . | . . . . . . . . . . . . . . . . . . . . . . . . . . . . . . . . . . Bothacking | -11 -10 -10 -10 -9 -8 -7 -7 -7 -7 -7 -6 -6 -6 -6 -6 -5 -5 -5 -5 -5 -4 -4 -4 -4 -4 -3 -3 -3 -2 -2 -2 -1 -1 ------------ Run | Yrd Mat Min Exi Min Mat Fac Low Low Zio Dee Pro Fac Low Low Dat Pro Fac Upp Upp War Pro Fac Upp Upp Zhi Pro Res Tes Res Qua Frg Acc Com Used RIF Installer . | . . . . . . . . . . . . . . . . . . . . . . . . . . . . . . . . . . Robots Hacked 10 | . . . . . . 1 . . 2 1 . . . . . . . . . . . . . . 3 . . . . 3 . . . Non-combat 1 | . . . . . . 1 . . . . . . . . . . . . . . . . . . . . . . . . . . . Combat 9 | . . . . . . . . . 2 1 . . . . . . . . . . . . . . 3 . . . . 3 . . . Robot Hacks Applied 10 | . . . . . . 1 . . 2 1 . . . . . . . . . . . . . . 3 . . . . 3 . . . parse_system 9 | . . . . . . . . . 2 1 . . . . . . . . . . . . . . 3 . . . . 3 . . . find_chute 1 | . . . . . . 1 . . . . . . . . . . . . . . . . . . . . . . . . . . . Relay Couplers Released 16 | . . . . . 2 . . . . . . 4 . . . . . . . . . . . . . . . . 1 1 4 4 . Machine Destruction 8 | . . . . . 2 . . . . . . . . . . . . . . . . . . . . . . . 1 1 . 4 . Programmers 8 | . . . . . . . . . . . . 4 . . . . . . . . . . . . . . . . . . 4 . . Fabnet Peak Effective % . | . . . . . . . . . . . . . . . . . . . . . . . . . . . . . . . . . . Robots Rewired 17 | . . . 2 . . . 2 . . . 2 . 2 . . . . 2 1 . 2 . . . . 2 . 2 . . . . . Allies Hacked 16 | . . . . . . . 2 . . . . . . . . . . . 2 4 1 . . . . . 5 . . . 2 . . Hacks Repelled . | . . . . . . . . . . . . . . . . . . . . . . . . . . . . . . . . . . Allies | -11 -10 -10 -10 -9 -8 -7 -7 -7 -7 -7 -6 -6 -6 -6 -6 -5 -5 -5 -5 -5 -4 -4 -4 -4 -4 -3 -3 -3 -2 -2 -2 -1 -1 -------- Run | Yrd Mat Min Exi Min Mat Fac Low Low Zio Dee Pro Fac Low Low Dat Pro Fac Upp Upp War Pro Fac Upp Upp Zhi Pro Res Tes Res Qua Frg Acc Com Total Allies 33 | . . 1 2 . . . 4 . . . 2 . 2 . . . . 2 1 . 2 . . . . 2 . 2 . . 8 . 5 Largest Group 5 | . . 1 2 2 . . 4 4 . . 2 . 2 1 1 1 1 2 1 . 1 . . . . 2 1 2 1 1 5 . 5 Highest-Rated Group 1170 | . . 31 16 16 . . 108 108 . . 59 . 59 30 30 30 30 59 30 . 48 . . . . 96 48 269 138 138 396 . 1170 Highest-Rated Ally 234 | . . 31 8 8 . . 31 31 . . 30 . 30 30 30 30 30 30 30 . 48 . . . . 48 48 146 138 138 154 . 234 Total Orders 134 | . . . . . . . . . 7 28 1 5 . 4 3 6 5 5 3 16 5 2 . . 5 4 5 1 2 . 18 9 . STAY 52 | . . . . . . . . . 6 20 . 2 . 2 2 . 3 . . 4 . 1 . . 2 . 1 . . . 9 . . ROAM 10 | . . . . . . . . . . . . . . . . 1 . 1 1 1 2 . . . 1 . 1 . 2 . . . . FOLLOW 44 | . . . . . . . . . 1 8 . 2 . 2 1 1 2 1 1 8 1 1 . . 2 1 2 . . . 9 1 . AID 16 | . . . . . . . . . . . 1 1 . . . 4 . 3 1 3 2 . . . . . . 1 . . . . . DROP 1 | . . . . . . . . . . . . . . . . . . . . . . . . . . 1 . . . . . . . PICKUP 1 | . . . . . . . . . . . . . . . . . . . . . . . . . . 1 . . . . . . . COLLECT 2 | . . . . . . . . . . . . . . . . . . . . . . . . . . 1 1 . . . . . . EXPLORE 4 | . . . . . . . . . . . . . . . . . . . . . . . . . . . . . . . . 4 . RETURN 4 | . . . . . . . . . . . . . . . . . . . . . . . . . . . . . . . . 4 . Ally Attacks 1964 | . . 11 . 10 . 44 84 43 202 58 42 41 29 17 . 50 120 36 67 65 87 22 6 65 . 45 145 288 34 101 252 . . Total Damage 98769 | . . 147 . 85 . 1527 1654 742 4833 2036 2577 2667 1625 730 . 1616 9064 2326 4156 3725 3872 756 256 2777 . 2948 7327 14646 2152 8039 16486 . . Kills 618 | . . 3 . 2 . 10 17 9 58 26 26 21 12 12 . 16 68 16 28 18 26 6 5 18 . 16 37 66 9 25 68 . . Allies Corrupted 21 | . . . . . . 1 3 . 2 . . . . . . . . . 2 1 . . . . . . 2 2 . . 8 . . Allies Melted 3 | . . . . . . . 1 . . . . . . . . . . . . . . . . . . . . 1 1 . . . . Borg Created 71 | . . . . . . 7 13 4 6 12 1 . . 1 . . . . 5 2 5 . . . . 1 1 8 1 1 3 . . Largest Collective 8 | . . . . . . 2 5 6 6 4 5 . . 5 . . . . 7 5 8 . . . . 6 7 5 5 4 4 . . Intel | -11 -10 -10 -10 -9 -8 -7 -7 -7 -7 -7 -6 -6 -6 -6 -6 -5 -5 -5 -5 -5 -4 -4 -4 -4 -4 -3 -3 -3 -2 -2 -2 -1 -1 ------- Run | Yrd Mat Min Exi Min Mat Fac Low Low Zio Dee Pro Fac Low Low Dat Pro Fac Upp Upp War Pro Fac Upp Upp Zhi Pro Res Tes Res Qua Frg Acc Com Active Infowar (turns) 31539 | . 477 1615 . . 2083 740 . . 2 . . 653 1706 1491 117 3280 1445 1223 . 2 2 618 1328 . . . 1131 1505 1281 3840 788 1391 4821 Optics 7823 | . . . . . 1659 . . . . . . . . . . . . . . . . . . . . . . . . . . 1344 4820 Sensors 4430 | . 255 1615 . . . . . . . . . 53 . . . . . . . . . . . . . . . . . 1962 500 45 . IFF 599 | . . . . . . . . . . . . . . . . . 599 . . . . . . . . . . . . . . . . Terrain 446 | . . . . . . . . . . . . . . . . . 109 . . . . . . . . . . . . . . 337 . Seismic 5261 | . 462 1613 . . 159 357 . . . . . 382 . . . . . . . . . . . . . . 175 . 1147 965 . . 1 Machine Analysis 327 | . . . . . 327 . . . . . . . . . . . . . . . . . . . . . . . . . . . . Cloaking 113 | . . . . . . . . . . . . . . . . . . . . 2 . . . . . . . . . . 111 . . Jamming 20580 | . . . . . 250 383 . . 2 . . 653 1706 1491 117 3280 1445 1223 . . 2 618 1328 . . . 1131 1505 1281 3487 676 2 . ECM 1 | . . . . . . . . . . . . . . . . . . . . . . . . . . . . . . . . 1 . Robot Analysis Total 7 | . 1 1 . . . . . . . . . . . . . . . . . . . . . . 4 . . 1 . . . . . Derelict Logs Recovered 21 | . . 1 . 1 . . 2 3 . . 3 . 1 1 . 1 . 2 1 . 2 . 1 2 . . . . . . . . . Drone Launches 6 | . . . . . . . . . . . . . . . . . . . . . . . . . . . . . . . . 6 . Drone Recoveries 4 | . . . . . . . . . . . . . . . . . . . . . . . . . . . . . . . . 4 . Exploration | -11 -10 -10 -10 -9 -8 -7 -7 -7 -7 -7 -6 -6 -6 -6 -6 -5 -5 -5 -5 -5 -4 -4 -4 -4 -4 -3 -3 -3 -2 -2 -2 -1 -1 ------------- Run | Yrd Mat Min Exi Min Mat Fac Low Low Zio Dee Pro Fac Low Low Dat Pro Fac Upp Upp War Pro Fac Upp Upp Zhi Pro Res Tes Res Qua Frg Acc Com Turns Passed 122738 | 700 481 1620 1524 1649 3541 963 3210 2573 3784 5921 1702 653 1706 1491 117 3280 1530 2181 3238 1683 2799 618 1702 1661 1012 2056 1133 1777 1292 4147 1965 3350 55679 Spaces Moved 61997 | 411 698 1056 705 671 1655 442 1672 1314 1840 2775 935 366 1072 1001 86 1257 922 837 1402 909 1414 333 907 755 541 1039 565 1108 879 2821 974 2178 26457 Core 997 | 33 685 163 116 . . . . . . . . . . . . . . . . . . . . . . . . . . . . . . Treads 5615 | 378 13 893 141 1 8 . . . . 160 . . . . . . . . . . . . . . . . . . . . . . 4021 Legs 40190 | . . . 448 29 . . . . . 828 935 366 1072 1001 86 1257 922 837 1402 909 1414 333 907 755 541 1039 495 . . . . 2178 22436 Wheels 15176 | . . . . 641 1628 442 1672 1314 1840 1787 . . . . . . . . . . . . . . . . 70 1108 879 2821 974 . . Hover 19 | . . . . . 19 . . . . . . . . . . . . . . . . . . . . . . . . . . . . Flight . | . . . . . . . . . . . . . . . . . . . . . . . . . . . . . . . . . . Fastest Speed 50 | 50 50 50 50 100 80 168 175 175 176 80 136 136 136 136 136 136 136 140 140 140 176 176 176 176 130 176 131 113 124 110 110 80 86 Average Speed 143 | 151 52 143 198 204 167 176 175 186 190 162 136 136 136 136 136 136 139 149 156 156 176 176 176 176 164 176 171 123 136 128 142 91 131 Slowest Speed 1620 | 160 160 160 1620 960 410 183 175 240 290 275 136 136 136 136 136 136 180 176 176 176 176 176 176 176 176 176 220 150 250 137 170 180 535 Overloaded Moves . | . . . . . . . . . . . . . . . . . . . . . . . . . . . . . . . . . . Propulsion Burnouts . | . . . . . . . . . . . . . . . . . . . . . . . . . . . . . . . . . . Robots Hopped 4 | . . . . . . . . . . . . . . . . . . . . . . . . . . . . . . . 1 . 3 Potential Cave-ins 59 | . . . . . . . . . . . . . . . . . . . . . . . . . . . . . . . 9 6 44 Cave-ins Triggered 6 | . . . . . . . . . . . . . . . . . . . . . . . . . . . . . . . 2 . 4 Teleports 1 | . . . . . . . . . . . . . . . . . . . . . . . . . . . . . . . 1 . . Exploration Rate (%) 75 | 9 85 98 93 81 97 21 99 99 89 93 98 17 98 98 71 99 29 98 96 87 99 7 98 97 78 96 25 95 31 97 21 60 95 Regions Visited 33 Branch Regions 24 Pre-discovered Areas 12 | . . 1 1 . 1 . . . 1 . 1 . . . 1 . . . 1 1 . . 1 . 3 . . . . . . . . Known Exits Taken 13 | . . . . . 1 1 . . . . . 1 . . . 1 1 . 1 . 1 1 . . . 1 1 1 . 1 1 . . Unknown Exits Taken 20 | 1 1 1 1 1 . . 1 1 1 1 1 . 1 1 1 . . 1 . 1 . . 1 1 1 . . . 1 . . 1 . Scrap Searched 55 | . . 1 . 1 . . 5 5 3 . 4 . 9 4 . 4 . 3 3 . 1 . 3 4 . 5 . . . . . . . Spaces Dug 198 | . . . . 53 7 7 1 . 7 1 1 21 16 . . 5 11 . 6 5 . 1 . 1 . . 15 6 3 2 2 8 19 Terrain Destroyed 2200 | . . . . 177 7 9 1 . 50 1 1 21 16 . . 5 11 . 6 5 . 1 . 1 1 . 15 6 5 2 40 302 1517 Melee 120 | . . . . . 7 7 1 . . 1 1 21 16 . . 5 11 . 6 5 . 1 . 1 . . 15 6 3 2 . 7 4 Projectile 366 | . . . . . . 2 . . . . . . . . . . . . . . . . . . 1 . . . . . 19 261 83 AOE 1706 | . . . . 177 . . . . 50 . . . . . . . . . . . . . . . . . . . 2 . 21 33 1423 Terrain Rammed . | . . . . . . . . . . . . . . . . . . . . . . . . . . . . . . . . . . Walls Destroyed . | . . . . . . . . . . . . . . . . . . . . . . . . . . . . . . . . . . Machines Disabled . | . . . . . . . . . . . . . . . . . . . . . . . . . . . . . . . . . . Actions | -11 -10 -10 -10 -9 -8 -7 -7 -7 -7 -7 -6 -6 -6 -6 -6 -5 -5 -5 -5 -5 -4 -4 -4 -4 -4 -3 -3 -3 -2 -2 -2 -1 -1 --------- Run | Yrd Mat Min Exi Min Mat Fac Low Low Zio Dee Pro Fac Low Low Dat Pro Fac Upp Upp War Pro Fac Upp Upp Zhi Pro Res Tes Res Qua Frg Acc Com Total 97420 | 464 794 1135 788 844 2218 590 1940 1401 2045 4027 1363 444 1284 1104 86 2805 1121 1768 2420 1172 1722 362 998 1083 649 1267 684 1447 963 3319 1440 2954 50719 Wait 13206 | . 54 27 . 6 178 74 182 33 108 760 382 30 178 91 1 1525 127 892 988 224 281 23 71 324 60 217 62 199 35 403 219 214 5238 Move 61949 | 410 697 1055 704 670 1654 441 1671 1313 1839 2774 934 365 1071 1000 85 1256 921 836 1401 908 1413 332 906 754 540 1038 564 1107 878 2820 969 2177 26446 Hop 4 | . . . . . . . . . . . . . . . . . . . . . . . . . . . . . . . 1 . 3 Pick Up 10289 | 5 5 8 12 44 83 9 7 8 5 162 . . 1 . . 2 6 . 2 6 . 1 . 1 2 . 4 6 8 18 33 58 9793 Fast Attach 369 | 2 7 1 4 4 24 3 . . 3 9 1 4 . . . 2 17 2 2 6 . 1 2 . 10 2 5 19 11 12 29 63 124 Attach 163 | . 4 7 5 10 9 . . 2 4 11 . 1 . . . 1 1 . . 1 . 2 . . 3 . 3 . 3 4 16 30 46 Detach 126 | 2 5 4 1 6 2 2 . . 2 . . 1 . . . 1 4 1 . . . 1 1 . 3 2 2 2 2 6 16 34 26 Swap 335 | . . 2 . 14 81 17 9 8 18 21 . 2 . . . 1 . . 1 . 5 . 1 1 5 1 3 14 5 4 32 31 59 Drop 8903 | 2 8 11 2 19 68 13 9 7 10 149 1 3 1 . . 3 13 2 1 17 . . 2 1 9 2 5 19 13 17 32 78 8386 Fire 851 | . . . . 26 72 2 6 . 36 37 . . . . . 1 . . . . . . 15 . 13 . . 9 2 5 74 236 317 Melee 810 | . 11 20 25 45 47 22 7 26 14 87 1 38 18 12 . 13 27 . 12 5 . 2 . 2 4 . 28 38 5 26 12 20 243 Ram . | . . . . . . . . . . . . . . . . . . . . . . . . . . . . . . . . . . Kick 4 | . . . . . . . . . . . . . . . . . . . . . . . . . . . . . . . . . 4 Crush 46 | 43 3 . . . . . . . . . . . . . . . . . . . . . . . . . . . . . . . . Escape Stasis 78 | . . . . . . . . . . . . . . . . . 5 . . . . . . . . . 5 19 . . 2 13 34 Rewire 201 | . . . 35 . . . 36 . . . 43 . 15 . . . . 35 8 3 18 . . . . 4 2 2 . . . . . Trap . | . . . . . . . . . . . . . . . . . . . . . . . . . . . . . . . . . . Miscellaneous 86 | . . . . . . 7 13 4 6 17 1 . . 1 . . . . 5 2 5 . . . . 1 1 13 1 4 5 . . Route ------- -11/Scrapyard -10/Materials (discovered 3 exits: [*Mat x2] / *Min) -10/Mines (discovered 4 exits: [*Mat x2] / *Exi / [*Sub]) -10/Exiles (discovered 2 exits: [*Min x2]) -9/Mines (discovered 2 exits: *Mat x2) -8/Materials (discovered 3 exits: *Fac x3) -7/Factory (discovered 2 exits: *Low x2) -7/Lower Caves -7/Lower Caves (discovered 2 exits: *Fac / *Zio) -7/Zion (discovered 2 exits: [*Dee] / [*Pro]) -7/Deep Caves -6/Proximity Caves -6/Factory (discovered 5 exits: Fac / *Low x2 / Ext x2) -6/Lower Caves -6/Lower Caves (discovered 2 exits: *Fac / *Dat) -6/Data Miner -5/Proximity Caves -5/Factory -5/Upper Caves -5/Upper Caves (discovered 2 exits: *Fac / *War) -5/Warlord -4/Proximity Caves -4/Factory (discovered 3 exits: Res / *Upp x2) -4/Upper Caves -4/Upper Caves (discovered 2 exits: *Res / *Zhi) -4/Zhirov -3/Proximity Caves -3/Research (discovered 5 exits: Res x2 / Arm / *Tes x2) -3/Testing -2/Research -2/Quarantine (discovered 3 exits: *Acc / *Sec / *Frg) -2/Protoforge -1/Access -1/Command (discovered 2 exits: [*Sur x2]) To Fleet Rendezvous History --------- Turn | Location | Event 9 | -11/Scrapyard | Discovered new exit (range 15) 701 | -11/Scrapyard | Entered Materials 724 | -10/Materials | Build established: Mutant 797 | -10/Materials | Discovered new exit (range 12) 887 | -10/Materials | Discovered new exit (range 8) 933 | -10/Materials | Discovered new exit (range 13) 1182 | -10/Materials | Entered Mines 1191 | -10/Mines | Met a Derelict shopkeep closing up shop 1214 | -10/Mines | Met a Derelict who couldn't figure out how to use a Trap Extractor 1447 | -10/Mines | Learned location of Zion (-7) 1660 | -10/Mines | Discovered new exit (range 14) 1662 | -10/Mines | Received a Mining Laser from a helpful Derelict 1730 | -10/Mines | Discovered new exit (range 15) 1897 | -10/Mines | Discovered new exit (range 8) 2163 | -10/Mines | Deemed a non-threat by the Exiles lab entrance 2163 | -10/Mines | Discovered new exit (range 5) 2802 | -10/Mines | Entered Exiles 2802 | -10/Exiles | Found Exiles lab destroyed 2810 | -10/Exiles | Discovered new exit (range 15) 2894 | -10/Exiles | Opened EX-Vault 2900 | -10/Exiles | Found Prototype Storage 2975 | -10/Exiles | Identified Lightpack 2.0 4059 | -10/Exiles | Build established: Hauler-Mutant 4268 | -10/Exiles | Discovered new exit (range 14) 4326 | -10/Exiles | Entered Mines 4326 | -9/Mines | Accompanied by 2 allies 4387 | -9/Mines | Met a Derelict bent on vengeance 4718 | -9/Mines | Found a hidden stash of uninstalled traps 4986 | -9/Mines | Assembled infested the area 5012 | -9/Mines | Core integrity fell below 50% 5046 | -9/Mines | Lost 3 parts (1p1n1w) 5107 | -9/Mines | Destroyed 19 combat bots 5227 | -9/Mines | Discovered new exit (range 13) 5322 | -9/Mines | Learned location of 1 exit from Materials 5808 | -9/Mines | Discovered new exit (range 9) 5964 | -9/Mines | Core integrity fell below 20% 5975 | -9/Mines | Entered Materials 5975 | -8/Materials | Evolved 4 slots: Propulsion x1, Utility x1, Weapon x2 5976 | -8/Materials | Identified exit to Factory 5994 | -8/Materials | Lost 12 parts (2p2n6u2w) 6036 | -8/Materials | Repaired Scythe 6339 | -8/Materials | Garrison activated, responded to threat 6545 | -8/Materials | Central database locked down 6601 | -8/Materials | Build established: Hauler-Skirmisher 6777 | -8/Materials | Discovered exit to Factory (range 11) 8077 | -8/Materials | Build established: Hauler-Gunner 8717 | -8/Materials | Discovered exit to Factory (range 16) 9188 | -8/Materials | Repaired Arm. Treads 9233 | -8/Materials | Repaired Hrd. Heavy Armor Plating 9516 | -8/Materials | Entered Factory 9516 | -7/Factory | Evolved 2 slots: Weapon x2 9522 | -7/Factory | Found Prototype Special Melee Weapon 9522 | -7/Factory | Identified 1B-0RG's Assimilator 9723 | -7/Factory | Identified exit to Lower Caves 9820 | -7/Factory | Build established: Hauler-Mutant 9846 | -7/Factory | Assimilating Trooper 4a into Collective. 9850 | -7/Factory | Assimilating Soldier 4a into Collective. 10041 | -7/Factory | Assimilating Trooper 4b into Collective. 10055 | -7/Factory | Assimilating Trooper 4c into Collective. 10138 | -7/Factory | Assimilating Transporter 4a into Collective. 10374 | -7/Factory | Assimilating Guardian 4a into Collective. 10388 | -7/Factory | Assimilating Guardian 4b into Collective. 10479 | -7/Factory | Entered Lower Caves 10481 | -7/Lower Caves | Assimilating SW-MKN(S) into Collective. 10487 | -7/Lower Caves | Assimilating DV-RFS(S) into Collective. 10643 | -7/Lower Caves | Acquired the password to a Derelict Tinkerer's latest research 10652 | -7/Lower Caves | Assimilating UY-WU1(c) into Collective. 10661 | -7/Lower Caves | Found Prototype Special Weapon 10963 | -7/Lower Caves | Assimilating Disruptor 4a into Collective. 11028 | -7/Lower Caves | Caught by Unaware searching for contraband prototypes 11054 | -7/Lower Caves | Assimilating Sage 4a into Collective. 11211 | -7/Lower Caves | Assimilating Trooper 4d into Collective. 11215 | -7/Lower Caves | Assimilating Soldier 4b into Collective. 11485 | -7/Lower Caves | Encountered a Warlord checkpoint 11499 | -7/Lower Caves | Assimilating 6Z-UHM(M) into Collective. 11696 | -7/Lower Caves | Assimilating QJ-HLH(g) into Collective. 11741 | -7/Lower Caves | Lost 3 allies 11846 | -7/Lower Caves | Discovered new exit (range 15) 11948 | -7/Lower Caves | A Commander dispatched an escort 11952 | -7/Lower Caves | Learned Extension terminal intel 11952 | -7/Lower Caves | Learned location of 1 exit from Research 11960 | -7/Lower Caves | Destroyed S6-YQA(g) 12263 | -7/Lower Caves | Learned Factory trap positions 12515 | -7/Lower Caves | Found DCF Scrap (12 items) 12546 | -7/Lower Caves | Learned location of 1 exit from Factory 13088 | -7/Lower Caves | Assimilating QM-N77(h) into Collective. 13096 | -7/Lower Caves | Assimilating QS-1Y1(M) into Collective. 13107 | -7/Lower Caves | Assimilating BO-35V(b) into Collective. 13118 | -7/Lower Caves | Assimilating T6-9X0(b) into Collective. 13689 | -7/Lower Caves | Entered another Lower Caves area 13689 | -7/Lower Caves | Accompanied by 9 allies 13690 | -7/Lower Caves | Commander's escort returned to base 13690 | -7/Lower Caves | Commander's escort returned to base 13787 | -7/Lower Caves | Encountered a Warlord checkpoint 13854 | -7/Lower Caves | Discovered new exit (range 17) 14311 | -7/Lower Caves | Attracted the attention of an 0b10 checkpoint 14567 | -7/Lower Caves | Learned Factory interactive machine intel 14569 | -7/Lower Caves | Learned 4 Factory zone layouts 14697 | -7/Lower Caves | Assimilating FE-KI3(M) into Collective. 15294 | -7/Lower Caves | Discovered new exit (range 8) 15320 | -7/Lower Caves | Learned Factory terminal intel 15522 | -7/Lower Caves | Entered an active Warlord outpost 15621 | -7/Lower Caves | Assimilating QZ-ZK4(g) into Collective. 15624 | -7/Lower Caves | Assimilating 39-M5D(M) into Collective. 15631 | -7/Lower Caves | Assimilating 1D-BP9(h) into Collective. 15686 | -7/Lower Caves | Murdered 5 allies 15878 | -7/Lower Caves | Learned Extension security intel 15878 | -7/Lower Caves | Learned Research security intel 15878 | -7/Lower Caves | Learned Factory security intel 15878 | -7/Lower Caves | Learned Research stockpile data 16262 | -7/Lower Caves | Entered Zion 16262 | -7/Zion | Accompanied by 6 allies 16303 | -7/Zion | Found CR-A16's Pointy Stick 16404 | -7/Zion | Discovered new exit (range 9) 16422 | -7/Zion | Given A8's code to call for help 16908 | -7/Zion | Found Prototype Energy Gun 16908 | -7/Zion | Identified Storm Laser 17216 | -7/Zion | Build established: Hauler-Tank 17363 | -7/Zion | Met Imprinter 18226 | -7/Zion | Build established: Hauler-Mutant 18843 | -7/Zion | Identified Molecular Deconstructor 18856 | -7/Zion | Attacked by Zionites 18936 | -7/Zion | Allies destroyed NK-0LA 18972 | -7/Zion | Allies destroyed Imprinter 19078 | -7/Zion | Spotted VU-CVR(B) 19151 | -7/Zion | Assimilating VU-CVR(B) into Collective. 19181 | -7/Zion | Extracted access codes from Imprinter's data core 19420 | -7/Zion | Spotted OT-8R2(B) 19432 | -7/Zion | Allies destroyed OT-8R2(B) 19452 | -7/Zion | Assimilating RS-HX6(z) into Collective. 19511 | -7/Zion | Lost 3 allies 19568 | -7/Zion | Assimilating 67-9TO(z) into Collective. 19709 | -7/Zion | Assimilating 70-5Q0(c) into Collective. 19767 | -7/Zion | Assimilating BO-T4W(z) into Collective. 19859 | -7/Zion | Assimilating 9B-NCY(z) into Collective. 19994 | -7/Zion | Opened final containment barrier to the Deep Caves 20030 | -7/Zion | Discovered new exit (range 5) 20035 | -7/Zion | Saw the warning signs outside the Deep Caves entrance 20046 | -7/Zion | Entered Deep Caves 20046 | -7/Deep Caves | Accompanied by 1 ally 20049 | -7/Deep Caves | Met 5H-AD0 20130 | -7/Deep Caves | Assimilating as-56732 into Collective. 20436 | -7/Deep Caves | Build established: Scavenger-Mutant 20521 | -7/Deep Caves | Z-Facility disabled 20604 | -7/Deep Caves | Assimilating IM-FOT(z) into Collective. 20635 | -7/Deep Caves | Assimilating OK-OT5(z) into Collective. 20638 | -7/Deep Caves | Assimilating 1U-T77(z) into Collective. 20666 | -7/Deep Caves | Lost 3 allies 20701 | -7/Deep Caves | Found Zio. Weapon Casing 20755 | -7/Deep Caves | Found Prototype Protection 20755 | -7/Deep Caves | Identified Zio. Heavy Carapace 20760 | -7/Deep Caves | Found Zio. Weapon Casing 20903 | -7/Deep Caves | Assimilating HT-AWB(z) into Collective. 20906 | -7/Deep Caves | Assimilating NF-8B9(z) into Collective. 20908 | -7/Deep Caves | Assimilating KG-V7E(z) into Collective. 21059 | -7/Deep Caves | Build established: Mutant 21176 | -7/Deep Caves | Discovered new exit (range 7) 21414 | -7/Deep Caves | Spotted AG-32475 21445 | -7/Deep Caves | Destroyed AG-32475 21447 | -7/Deep Caves | Found GOLEM Unit 21633 | -7/Deep Caves | Found Zio. Weapon Casing 21661 | -7/Deep Caves | Found Zio. Weapon Casing 21948 | -7/Deep Caves | Spotted AG-66923 21982 | -7/Deep Caves | Destroyed AG-66923 22300 | -7/Deep Caves | Assimilating AG-97352 into Collective. 23071 | -7/Deep Caves | Exposed GOLEM chamber 23072 | -7/Deep Caves | Triggered Deep Caves wall 23073 | -7/Deep Caves | Spotted AS-99463 23073 | -7/Deep Caves | Destroyed AS-99463 23085 | -7/Deep Caves | Spotted AS-48676 23091 | -7/Deep Caves | Allies destroyed AS-48676 23098 | -7/Deep Caves | Destroyed 24 combat bots 23623 | -7/Deep Caves | Build established: Hauler-Mutant 23829 | -7/Deep Caves | Found GOLEM Unit 24146 | -7/Deep Caves | Found GOLEM Unit 24151 | -7/Deep Caves | Found GOLEM Unit 24157 | -7/Deep Caves | Found GOLEM Unit 24162 | -7/Deep Caves | Found GOLEM Unit 24167 | -7/Deep Caves | Found GOLEM Unit 24173 | -7/Deep Caves | Found GOLEM Unit 24178 | -7/Deep Caves | Found GOLEM Unit 24184 | -7/Deep Caves | Found GOLEM Unit 24189 | -7/Deep Caves | Found GOLEM Unit 24194 | -7/Deep Caves | Found GOLEM Unit 24200 | -7/Deep Caves | Found GOLEM Unit 24205 | -7/Deep Caves | Found GOLEM Unit 24210 | -7/Deep Caves | Found GOLEM Unit 24216 | -7/Deep Caves | Found GOLEM Unit 24240 | -7/Deep Caves | Found GOLEM Unit 24245 | -7/Deep Caves | Found GOLEM Unit 24251 | -7/Deep Caves | Found GOLEM Unit 24256 | -7/Deep Caves | Found GOLEM Unit 24262 | -7/Deep Caves | Found GOLEM Unit 24267 | -7/Deep Caves | Found GOLEM Unit 24272 | -7/Deep Caves | Found GOLEM Unit 24299 | -7/Deep Caves | Found GOLEM Unit 24408 | -7/Deep Caves | Assimilating AG-80921 into Collective. 24481 | -7/Deep Caves | Assimilating AG-16742 into Collective. 24529 | -7/Deep Caves | Found GOLEM Unit 24660 | -7/Deep Caves | Assimilating AG-55278 into Collective. 24856 | -7/Deep Caves | Assimilating AG-99618 into Collective. 25439 | -7/Deep Caves | Found PSU Rigger 25967 | -7/Deep Caves | Entered Proximity Caves 25967 | -6/Proximity Caves | Accompanied by 4 allies 26228 | -6/Proximity Caves | Received a Behemoth hack from an annoying Tinkerer 26481 | -6/Proximity Caves | Learned Factory security intel 26526 | -6/Proximity Caves | Attracted the attention of an 0b10 checkpoint 26539 | -6/Proximity Caves | Learned Factory terminal intel 26878 | -6/Proximity Caves | Attracted the attention of an 0b10 outpost 27045 | -6/Proximity Caves | Spotted B-75 Beast 27060 | -6/Proximity Caves | Allies destroyed B-75 Beast 27478 | -6/Proximity Caves | Assimilating Hacker 5a into Collective. 27563 | -6/Proximity Caves | Discovered new exit (range 7) 27669 | -6/Proximity Caves | Entered Factory 27669 | -6/Factory | Accompanied by 5 allies 27669 | -6/Factory | Evolved 2 slots: Utility x2 27670 | -6/Factory | Identified exit to Extension 27671 | -6/Factory | Identified exit to Factory 27672 | -6/Factory | Loaded intel: 98 trap records 27674 | -6/Factory | Loaded intel: 55 interactive machine locations 27675 | -6/Factory | Loaded intel: 28 terminal locations 28156 | -6/Factory | Identified exit to Lower Caves 28322 | -6/Factory | Entered Lower Caves 28322 | -6/Lower Caves | Accompanied by 4 allies 28726 | -6/Lower Caves | Encountered a Warlord checkpoint 28967 | -6/Lower Caves | Attracted the attention of an 0b10 outpost 29013 | -6/Lower Caves | Learned Factory security intel 29248 | -6/Lower Caves | Discovered new exit (range 16) 29562 | -6/Lower Caves | Spotted B-75 Beast 29585 | -6/Lower Caves | Allies destroyed B-75 Beast 30028 | -6/Lower Caves | Entered another Lower Caves area 30028 | -6/Lower Caves | Accompanied by 5 allies 30032 | -6/Lower Caves | Encountered a Warlord checkpoint 30106 | -6/Lower Caves | Discovered exit to Factory (range 10) 30345 | -6/Lower Caves | Learned location of 1 exit from Factory 30662 | -6/Lower Caves | Attracted the attention of an 0b10 checkpoint 30937 | -6/Lower Caves | Spotted B-75 Beast 30945 | -6/Lower Caves | Assimilating Beast 5a into Collective. 31244 | -6/Lower Caves | Revealed the true nature of CR-A16's Pointy Stick 31446 | -6/Lower Caves | Discovered new exit (range 5) 31519 | -6/Lower Caves | Entered Data Miner 31519 | -6/Data Miner | Accompanied by 6 allies 31519 | -6/Data Miner | Discovered new exit (range 6) 31545 | -6/Data Miner | Met Data Miner 31586 | -6/Data Miner | Learned location of Section 7 (-2) 31586 | -6/Data Miner | Acquired the access code to Warlord's prototype stash 31600 | -6/Data Miner | Received God Mode back door access code from Data Miner 31636 | -6/Data Miner | Entered Proximity Caves 31636 | -5/Proximity Caves | Accompanied by 6 allies 32330 | -5/Proximity Caves | Spotted B-75 Beast 32333 | -5/Proximity Caves | Allies destroyed B-75 Beast 34465 | -5/Proximity Caves | Discovered exit to Factory (range 5) 34916 | -5/Proximity Caves | Entered Factory 34916 | -5/Factory | Accompanied by 5 allies 34916 | -5/Factory | Evolved 2 slots: Power x1, Utility x1 34917 | -5/Factory | Identified exit to Upper Caves 34919 | -5/Factory | Loaded intel: 26 terminal locations 36018 | -5/Factory | Cargo convoy interrupted 36050 | -5/Factory | Found Prototype Device 36050 | -5/Factory | Identified Exp. EM Shield 36053 | -5/Factory | Found Prototype Processor 36053 | -5/Factory | Identified Exp. Signal Interpreter 36056 | -5/Factory | Found Prototype Processor 36056 | -5/Factory | Identified Exp. Core Analyzer 36079 | -5/Factory | Found Exp. Core Analyzer 36097 | -5/Factory | Found PL-3XN's Ring of Power 36116 | -5/Factory | First assault squad dispatched 36433 | -5/Factory | Central database locked down 36446 | -5/Factory | Entered Upper Caves 36446 | -5/Upper Caves | Accompanied by 4 allies 36510 | -5/Upper Caves | Allies destroyed B-75 Beast 37024 | -5/Upper Caves | Discovered new exit (range 148) 37890 | -5/Upper Caves | Attracted the attention of an 0b10 checkpoint 37947 | -5/Upper Caves | Encountered a Warlord checkpoint 37965 | -5/Upper Caves | Learned Factory terminal intel 38229 | -5/Upper Caves | Learned Factory emergency access door positions 38627 | -5/Upper Caves | Entered another Upper Caves area 38627 | -5/Upper Caves | Accompanied by 5 allies 38628 | -5/Upper Caves | Identified exit to Warlord 38628 | -5/Upper Caves | Discovered new exit (range 10) 40474 | -5/Upper Caves | Attracted the attention of an 0b10 outpost 40543 | -5/Upper Caves | Attracted the attention of an 0b10 checkpoint 40569 | -5/Upper Caves | Learned location of 1 exit from Proximity Caves 40641 | -5/Upper Caves | Destroyed 2Y-53A(g) 40660 | -5/Upper Caves | Learned Research garrison access intel 40660 | -5/Upper Caves | Learned Research security intel 40660 | -5/Upper Caves | Learned Factory stockpile data 40743 | -5/Upper Caves | Assimilating CL-1MN(M) into Collective. 40745 | -5/Upper Caves | Assimilating N1-V4G(l) into Collective. 40902 | -5/Upper Caves | Assimilating BK-156(l) into Collective. 41047 | -5/Upper Caves | Assimilating 5X-J4W(l) into Collective. 41297 | -5/Upper Caves | Assimilating B8-KIC(l) into Collective. 41534 | -5/Upper Caves | Ambushed by research squad 41865 | -5/Upper Caves | Entered Warlord 41865 | -5/Warlord | Accompanied by 7 allies 41912 | -5/Warlord | System corruption cleaned by Quarantine Array 42262 | -5/Warlord | Learned Quarantine emergency access door positions 42262 | -5/Warlord | Learned location of Testing (-3) 42264 | -5/Warlord | Learned 4 Command zone layouts 42265 | -5/Warlord | Learned Armory security intel 42265 | -5/Warlord | Learned Research security intel 42265 | -5/Warlord | Learned Factory recycling unit intel 42552 | -5/Warlord | Found Prototype Device 42573 | -5/Warlord | Opened Warlord's prototype stash 42581 | -5/Warlord | Found Prototype Device 42581 | -5/Warlord | Identified Exp. Cloaking Device 42604 | -5/Warlord | Found Prototype Processor 42604 | -5/Warlord | Identified Exp. Target Analyzer 42614 | -5/Warlord | Found Prototype Reactor 42614 | -5/Warlord | Identified Vortex Chain Reactor 42626 | -5/Warlord | Found Prototype Hackware 42667 | -5/Warlord | Met Warlord 42692 | -5/Warlord | Warlord's base attacked by MAIN.C 42835 | -5/Warlord | Lost 3 allies 43016 | -5/Warlord | Lost 10 allies 43042 | -5/Warlord | Warlord forces counterattacked 43086 | -5/Warlord | P-70 Sage assimilated allied M4-1HI(g) 43097 | -5/Warlord | P-70 Sage assimilated allied Q4-N5V(Y) 43098 | -5/Warlord | P-80 Master assimilated allied LI-LZY(Y) 43140 | -5/Warlord | Lost 9 allies 43152 | -5/Warlord | Spotted Executioner 43185 | -5/Warlord | Spotted Executioner 43208 | -5/Warlord | Spotted Executioner 43250 | -5/Warlord | Spotted Striker 43256 | -5/Warlord | Spotted Striker 43279 | -5/Warlord | Assimilating Striker into Collective. 43298 | -5/Warlord | Lost 19 allies 43308 | -5/Warlord | Assimilating Warrior 6a into Collective. 43367 | -5/Warlord | Warlord base infiltrated, sounded retreat 43477 | -5/Warlord | Discovered new exit (range 15) 43548 | -5/Warlord | Entered Proximity Caves 43548 | -4/Proximity Caves | Accompanied by 5 allies 43549 | -4/Proximity Caves | Identified exit to Factory 43850 | -4/Proximity Caves | Allies destroyed Borg Striker 44227 | -4/Proximity Caves | Assimilating Warrior 7a into Collective. 44269 | -4/Proximity Caves | Assimilating Veteran 7a into Collective. 44290 | -4/Proximity Caves | Assimilating Swordsman 7a into Collective. 44672 | -4/Proximity Caves | Learned 12 Research zone layouts 45087 | -4/Proximity Caves | Encountered a Derelict sapper outpost 45100 | -4/Proximity Caves | Assimilating J3-4L1(g) into Collective. 45699 | -4/Proximity Caves | Assimilating 8V-ISB(g) into Collective. 46347 | -4/Proximity Caves | Entered Factory 46347 | -4/Factory | Accompanied by 8 allies 46347 | -4/Factory | Evolved 2 slots: Utility x2 46348 | -4/Factory | Identified exit to Research 46352 | -4/Factory | Loaded intel: 26 terminal locations 46353 | -4/Factory | Loaded intel: 8 recycling unit locations 46380 | -4/Factory | Identified System Mapper 46381 | -4/Factory | Identified exit to Upper Caves 46965 | -4/Factory | Entered Upper Caves 46965 | -4/Upper Caves | Accompanied by 8 allies 47235 | -4/Upper Caves | Learned location of Armory (-3) 48176 | -4/Upper Caves | Discovered new exit (range 8) 48182 | -4/Upper Caves | Encountered a Warlord checkpoint 48667 | -4/Upper Caves | Entered another Upper Caves area 48667 | -4/Upper Caves | Accompanied by 8 allies 48733 | -4/Upper Caves | Discovered exit to Research (range 12) 48845 | -4/Upper Caves | Attracted the attention of an 0b10 base 48873 | -4/Upper Caves | Learned Research security intel 49052 | -4/Upper Caves | Attracted the attention of an 0b10 checkpoint 49921 | -4/Upper Caves | Learned Research terminal intel 50068 | -4/Upper Caves | Discovered new exit (range 15) 50328 | -4/Upper Caves | Entered Zhirov 50328 | -4/Zhirov | Accompanied by 8 allies 50328 | -4/Zhirov | Discovered new exit (range 3) 50360 | -4/Zhirov | Met Zhirov 50392 | -4/Zhirov | Learned location of Quarantine (-2) 50392 | -4/Zhirov | Learned location of Command (-1) 50416 | -4/Zhirov | Zhirov requested help retrieving the SGEMP Prototype 50453 | -4/Zhirov | Found Alien Artifact 50453 | -4/Zhirov | Identified Integrated Reactor 50453 | -4/Zhirov | Installed Integrated Reactor, increased core energy generation (+10) 50736 | -4/Zhirov | Found Alien Artifact 51114 | -4/Zhirov | Cloak Generator disabled 51114 | -4/Zhirov | Attacked by Zhirov 51124 | -4/Zhirov | Enhanced Grunts warped into view 51145 | -4/Zhirov | Zhirov detonated his lab 51176 | -4/Zhirov | Lost 4 allies 51340 | -4/Zhirov | Entered Proximity Caves 51340 | -3/Proximity Caves | Accompanied by 6 allies 51916 | -3/Proximity Caves | Spotted B-86 Titan 51935 | -3/Proximity Caves | Allies destroyed B-86 Titan 52174 | -3/Proximity Caves | Attracted the attention of an 0b10 outpost 52392 | -3/Proximity Caves | Discovered exit to Research (range 12) 52512 | -3/Proximity Caves | Assimilating Conveyor 8a into Collective. 52537 | -3/Proximity Caves | Found Imp. Powered Armor 53396 | -3/Proximity Caves | Entered Research 53396 | -3/Research | Accompanied by 7 allies 53396 | -3/Research | Evolved 2 slots: Utility x2 53397 | -3/Research | Identified exit to Armory 53398 | -3/Research | Identified exit to Testing 53399 | -3/Research | Identified exit to Research 53402 | -3/Research | Loaded intel: 23 terminal locations 53403 | -3/Research | Loaded intel: 3 garrison access locations 53524 | -3/Research | Assimilating Assassin 8a into Collective. 53778 | -3/Research | Found Gamma Bomb Array 53795 | -3/Research | Watched by a mysterious "MATRIX" hacker. 54271 | -3/Research | Discovered exit to Testing (range 8) 54529 | -3/Research | Entered Testing 54529 | -3/Testing | Accompanied by 4 allies 54585 | -3/Testing | Build established: Hacker-Mutant 54694 | -3/Testing | Assimilating Analyst 8a into Collective. 54797 | -3/Testing | Assimilating Analyst 8b into Collective. 54805 | -3/Testing | Scanned by Researcher 55019 | -3/Testing | Assimilating Electro 8a into Collective. 55019 | -3/Testing | Spotted Striker 55021 | -3/Testing | Build established: Hauler-Mutant 55029 | -3/Testing | First assault squad dispatched 55031 | -3/Testing | Assimilating Striker into Collective. 55033 | -3/Testing | Spotted Striker 55044 | -3/Testing | Allies destroyed Striker 55124 | -3/Testing | Found Prototype Energy Gun 55124 | -3/Testing | Identified Hyp. EM Gauss Rifle 55227 | -3/Testing | Assimilating Assassin 8b into Collective. 55389 | -3/Testing | Discovered exit to Research (range 10) 55420 | -3/Testing | Rewired PY-PPE4ZTS2QK 55633 | -3/Testing | Rewired PL-BBXN62PJX7 55674 | -3/Testing | Protovariant out of control (PL-BBXN62PJX7) 55676 | -3/Testing | Spotted PL-BBXN62PJX7 55685 | -3/Testing | Allies destroyed PL-BBXN62PJX7 55723 | -3/Testing | Assimilating Analyst 8c into Collective. 55733 | -3/Testing | Found Prototype Protection 55733 | -3/Testing | Identified Med. Regenerative Plating 55769 | -3/Testing | Spotted Investigator 55772 | -3/Testing | Destroyed Investigator 56050 | -3/Testing | Incoming assault squad redirected 56195 | -3/Testing | Found Prototype Launcher 56195 | -3/Testing | Identified Z-bomb Delivery System 56263 | -3/Testing | Assimilating Analyst 8d into Collective. 56266 | -3/Testing | System corruption reached 10% 56267 | -3/Testing | Assimilating Master 8a into Collective. 56306 | -3/Testing | Entered Research 56306 | -2/Research | Accompanied by 6 allies 56306 | -2/Research | Warlord forces began assault on 0b10 56306 | -2/Research | Evolved 2 slots: Utility x2 56386 | -2/Research | Discovered new exit (range 61) 56416 | -2/Research | Research machine network offline 56496 | -2/Research | Assimilating Processor 9a into Collective. 56522 | -2/Research | Lost 5 allies 56557 | -2/Research | Borebot progress halted 56631 | -2/Research | Met up with Warlord 56759 | -2/Research | Borebot progress halted 56873 | -2/Research | Borebot progress halted 56890 | -2/Research | Spotted Striker 56891 | -2/Research | Spotted Striker 56895 | -2/Research | Allies destroyed Striker 56896 | -2/Research | Allies destroyed Striker 57163 | -2/Research | Found Vortex Chain Reactor 57167 | -2/Research | Found Vortex Chain Reactor 57417 | -2/Research | Warlord invited to help at Command 57417 | -2/Research | Given Cave Seal Controls access code 57419 | -2/Research | Found Prototype Processor 57419 | -2/Research | Identified Exp. Melee Analysis Suite 57455 | -2/Research | Met DD-05H 57506 | -2/Research | Met PL-HR7 57506 | -2/Research | Found Warlord Statue 57598 | -2/Research | Entered Quarantine 57598 | -2/Quarantine | Accompanied by 5 allies 57614 | -2/Quarantine | Cryocooling Duct disabled 57629 | -2/Quarantine | Ambient heat levels rising (+20) 57629 | -2/Quarantine | Non-combat units ordered to evacuate 57655 | -2/Quarantine | Found Alien Energy Cannon 57738 | -2/Quarantine | Cryocooling Duct disabled 57753 | -2/Quarantine | Ambient heat levels rising (+20) 57753 | -2/Quarantine | Combat units ordered to evacuate 57853 | -2/Quarantine | Quarantine Guard activated 57863 | -2/Quarantine | Found Sigix Corpse 57874 | -2/Quarantine | Found Sigix Corpse 57933 | -2/Quarantine | Spotted Quarantine Guard 57944 | -2/Quarantine | Allies destroyed Quarantine Guard 57948 | -2/Quarantine | Spotted Quarantine Guard 57959 | -2/Quarantine | Allies destroyed Quarantine Guard 57964 | -2/Quarantine | Spotted Quarantine Guard 57972 | -2/Quarantine | Allies destroyed Quarantine Guard 57997 | -2/Quarantine | Found Exp. Transmission Jammer 58012 | -2/Quarantine | Spotted Quarantine Guard 58019 | -2/Quarantine | Allies destroyed Quarantine Guard 58039 | -2/Quarantine | Found Alien Impact Weapon 58111 | -2/Quarantine | Found Alien Launcher 58133 | -2/Quarantine | Spotted Quarantine Guard 58142 | -2/Quarantine | Allies destroyed Quarantine Guard 58202 | -2/Quarantine | Found Exp. Signal Interpreter 58255 | -2/Quarantine | Discovered new exit (range 6) 58255 | -2/Quarantine | Spotted Quarantine Guard 58265 | -2/Quarantine | Allies destroyed Quarantine Guard 58354 | -2/Quarantine | Found Alien Slashing Weapon 58372 | -2/Quarantine | Spotted Quarantine Guard 58385 | -2/Quarantine | Allies destroyed Quarantine Guard 58389 | -2/Quarantine | Spotted Quarantine Guard 58389 | -2/Quarantine | Spotted Quarantine Guard 58389 | -2/Quarantine | Allies destroyed Quarantine Guard 58392 | -2/Quarantine | Spotted Quarantine Guard 58393 | -2/Quarantine | Allies destroyed Quarantine Guard 58410 | -2/Quarantine | Allies destroyed Quarantine Guard 58471 | -2/Quarantine | Found Alien Artifact 58481 | -2/Quarantine | Found Alien Artifact 58490 | -2/Quarantine | Found Alien Artifact 58564 | -2/Quarantine | Found Alien Artifact 58894 | -2/Quarantine | Assimilating PY-PPE4ZTS2QK into Collective. 59202 | -2/Quarantine | Identified exit to Access 59249 | -2/Quarantine | Found Alien Artifact 59249 | -2/Quarantine | Identified Core Reset Matrix 59249 | -2/Quarantine | Identified Transdimensional Reconstructor (x3) 59249 | -2/Quarantine | Identified Sigix Broadsword 59249 | -2/Quarantine | Identified Core Stripper 59249 | -2/Quarantine | Identified Subatomic Replicator 59249 | -2/Quarantine | Identified Dimensional Node Initializer 59249 | -2/Quarantine | Identified Sigix Terminator 59249 | -2/Quarantine | Used Core Reset Matrix 59253 | -2/Quarantine | Detected hypermatrix surge 59253 | -2/Quarantine | Sensed 7 artifacts in vicinity 59289 | -2/Quarantine | Discovered exit to Access (range 14) 59491 | -2/Quarantine | Spotted Fortress 59499 | -2/Quarantine | Destroyed Fortress 59507 | -2/Quarantine | Found Prototype Device 59507 | -2/Quarantine | Identified Thermal Barrier 59515 | -2/Quarantine | Found Prototype Device 59515 | -2/Quarantine | Identified Exp. EM Shield 59530 | -2/Quarantine | Found Prototype Device 59530 | -2/Quarantine | Identified Exp. Force Field 60100 | -2/Quarantine | Discovered new exit (range 7) 60100 | -2/Quarantine | Discovered new exit (range 9) 60100 | -2/Quarantine | Spotted Quarantine Guard 60107 | -2/Quarantine | Spotted Quarantine Guard 60107 | -2/Quarantine | Allies destroyed Quarantine Guard 60111 | -2/Quarantine | Allies destroyed Quarantine Guard 60123 | -2/Quarantine | Identified exit to Section 7 60126 | -2/Quarantine | Identified exit to Protoforge 60480 | -2/Quarantine | Found Terrabomb 61468 | -2/Quarantine | Found Phase Armor 61509 | -2/Quarantine | Found Transdimensional Reconstructor 61745 | -2/Quarantine | Entered Protoforge 61745 | -2/Protoforge | Accompanied by 4 allies 61746 | -2/Protoforge | Sensed 2 artifacts in vicinity 61970 | -2/Protoforge | Discovered exit to Access (range 5) 61990 | -2/Protoforge | Spotted Hotshot 61990 | -2/Protoforge | Spotted Hotshot 61990 | -2/Protoforge | Spotted Hotshot 61993 | -2/Protoforge | Spotted Hotshot 61997 | -2/Protoforge | Destroyed Hotshot 61998 | -2/Protoforge | Allies destroyed Hotshot 62002 | -2/Protoforge | Allies destroyed Hotshot 62007 | -2/Protoforge | Allies destroyed Hotshot 62039 | -2/Protoforge | Initialized slip node 62114 | -2/Protoforge | Spotted Hotshot 62115 | -2/Protoforge | Spotted Hotshot 62117 | -2/Protoforge | Spotted Hotshot 62118 | -2/Protoforge | Superfortress began startup sequence 62119 | -2/Protoforge | Spotted Hotshot 62127 | -2/Protoforge | Allies destroyed Hotshot 62127 | -2/Protoforge | Allies destroyed Hotshot 62147 | -2/Protoforge | Allies destroyed Hotshot 62150 | -2/Protoforge | Allies destroyed Hotshot 62359 | -2/Protoforge | Found Prototype Device 62362 | -2/Protoforge | Found Prototype Device 62371 | -2/Protoforge | Found Prototype Launcher 62373 | -2/Protoforge | Found Prototype Launcher 62388 | -2/Protoforge | Found Prototype Device 62390 | -2/Protoforge | Found Prototype Device 62423 | -2/Protoforge | Used Terrabomb 62423 | -2/Protoforge | Additional patrols dispatched to research labs 62438 | -2/Protoforge | Crushed by falling debris 62439 | -2/Protoforge | Crushed by falling debris 62485 | -2/Protoforge | Assimilating Expert 9a into Collective. 62492 | -2/Protoforge | Spotted Immortal 62492 | -2/Protoforge | Spotted Immortal 62495 | -2/Protoforge | First assault squad dispatched 62501 | -2/Protoforge | Found Prototype Energy Gun 62501 | -2/Protoforge | Identified Cep. Lightning Penetrator 62530 | -2/Protoforge | Allies destroyed Immortal 62540 | -2/Protoforge | Allies destroyed Immortal 62553 | -2/Protoforge | Assimilating Annihilator 9a into Collective. 62562 | -2/Protoforge | Found Prototype Device 62562 | -2/Protoforge | Identified Exp. Cloaking Device 62638 | -2/Protoforge | Spotted Decapitator 62638 | -2/Protoforge | Spotted Decapitator 62638 | -2/Protoforge | Spotted Decapitator 62638 | -2/Protoforge | Spotted Decapitator 62652 | -2/Protoforge | Allies destroyed Decapitator 62652 | -2/Protoforge | Allies destroyed Decapitator 62655 | -2/Protoforge | Allies destroyed Decapitator 62661 | -2/Protoforge | Found Prototype Slashing Weapon 62661 | -2/Protoforge | Identified Exp. Terror Saw 62690 | -2/Protoforge | Garrison activated, responded to threat 62708 | -2/Protoforge | Identified Cep. Concussive Dispersal Blaster (x2) 62714 | -2/Protoforge | Identified Cep. Recoil Nullifier (x2) 62719 | -2/Protoforge | Found Prototype Device 62719 | -2/Protoforge | Identified Crosscalibrator 62869 | -2/Protoforge | Found Cep. Variable Chargecaster 62872 | -2/Protoforge | Found Exp. Terror Saw 62875 | -2/Protoforge | Found Cep. Helical Railcannon 62878 | -2/Protoforge | Found Cep. Helical Railcannon 62880 | -2/Protoforge | Found Cep. Helical Railcannon 62886 | -2/Protoforge | Found Exp. Jetlance 62888 | -2/Protoforge | Identified Cep. Weapon Articulator 62894 | -2/Protoforge | Found Prototype Energy Cannon 62894 | -2/Protoforge | Identified Cep. Plasma Driver 62900 | -2/Protoforge | Found Cep. Plasma Driver 62918 | -2/Protoforge | Found Cep. Variable Chargecaster 62925 | -2/Protoforge | Found Prototype Ballistic Gun 62925 | -2/Protoforge | Identified Cep. XC Strikerail 62932 | -2/Protoforge | Found Faulty Cep. XC Strikerail 62940 | -2/Protoforge | Found Faulty Cep. XC Strikerail 62946 | -2/Protoforge | Found Prototype Slashing Weapon 62946 | -2/Protoforge | Identified Cep. Deflector Sword 62950 | -2/Protoforge | Found Exp. Jetlance 63024 | -2/Protoforge | Assimilating Warden 9a into Collective. 63084 | -2/Protoforge | Found Prototype Processor 63084 | -2/Protoforge | Identified Exp. Target Analyzer 63125 | -2/Protoforge | Found Cep. Fieldthrust Drive 63279 | -2/Protoforge | Found Faulty Cep. Biometal Exoskeleton 63291 | -2/Protoforge | Found Cep. Biometal Exoskeleton 63328 | -2/Protoforge | Destroyed 11 combat bots 63415 | -2/Protoforge | Spotted Hotshot 63416 | -2/Protoforge | Spotted Hotshot 63416 | -2/Protoforge | Spotted Hotshot 63417 | -2/Protoforge | Spotted Hotshot 63419 | -2/Protoforge | Allies destroyed Hotshot 63422 | -2/Protoforge | Allies destroyed Hotshot 63424 | -2/Protoforge | Allies destroyed Hotshot 63425 | -2/Protoforge | Destroyed Hotshot 63448 | -2/Protoforge | Forge Plexus network access discovered 63493 | -2/Protoforge | Found Cep. Hardlight Director 63496 | -2/Protoforge | Found Exp. EM Disruption Field 63499 | -2/Protoforge | Found Cep. Core Shell 63502 | -2/Protoforge | Found Exp. EM Disruption Field 63532 | -2/Protoforge | Spotted V359-c 63535 | -2/Protoforge | Spotted V886-l 63539 | -2/Protoforge | Spotted V704-u 63541 | -2/Protoforge | Spotted V640-x 63551 | -2/Protoforge | Destroyed V359-c 63561 | -2/Protoforge | Destroyed V886-l 63602 | -2/Protoforge | Destroyed 9 combat bots 63602 | -2/Protoforge | Destroyed V704-u 63629 | -2/Protoforge | Found Faulty Exp. Force Field 63633 | -2/Protoforge | Found Faulty Cep. Phase Shift Module 63639 | -2/Protoforge | Found Exp. Force Field 63644 | -2/Protoforge | Found Cep. Energy Mantle 63647 | -2/Protoforge | Found Cep. RG22 Armor 63663 | -2/Protoforge | Warped through subspace to slip node 63663 | -2/Protoforge | Spotted Hotshot 63663 | -2/Protoforge | Spotted Hotshot 63663 | -2/Protoforge | Spotted Hotshot 63663 | -2/Protoforge | Spotted Hotshot 63672 | -2/Protoforge | Destroyed Hotshot 63694 | -2/Protoforge | Lost 3 parts (1u2w) 63710 | -2/Protoforge | Entered Access 63710 | -1/Access | Evolved 2 slots: Propulsion x2 63729 | -1/Access | High security lockdown imminent 63748 | -1/Access | P-80 Master assimilated allied YP-FJ5(M) 63777 | -1/Access | Lost 3 allies 63788 | -1/Access | Destroyed 9 combat bots 63809 | -1/Access | High security lockdown engaged 64038 | -1/Access | Garrison activated, responded to threat 64047 | -1/Access | Build established: Hauler-Executioner 64126 | -1/Access | Found Unknown Protection 64126 | -1/Access | Identified Imp. Powered Armor 64152 | -1/Access | Found Imp. Powered Armor 64272 | -1/Access | Spotted Executioner 64272 | -1/Access | Spotted Striker 64279 | -1/Access | Destroyed Executioner 64298 | -1/Access | Destroyed Striker 64329 | -1/Access | Destroyed 11 combat bots 64429 | -1/Access | Destroyed 10 combat bots 64429 | -1/Access | Found Prototype Processor 64545 | -1/Access | Spotted Striker 64551 | -1/Access | Spotted Investigator 64553 | -1/Access | Destroyed Investigator 64572 | -1/Access | Spotted Striker 64580 | -1/Access | Destroyed Striker 64583 | -1/Access | Destroyed Striker 64620 | -1/Access | Destroyed 35 combat bots 64716 | -1/Access | Spotted Striker 64719 | -1/Access | Destroyed Striker 64720 | -1/Access | Spotted Striker 64723 | -1/Access | Destroyed Striker 64763 | -1/Access | Spotted Executioner 64765 | -1/Access | Spotted Executioner 64766 | -1/Access | Destroyed Executioner 64769 | -1/Access | Destroyed Executioner 64769 | -1/Access | Destroyed Executioner 64895 | -1/Access | Spotted Investigator 64901 | -1/Access | Destroyed Investigator 64936 | -1/Access | Destroyed 12 combat bots 64986 | -1/Access | Destroyed 10 combat bots 65050 | -1/Access | Spotted Striker 65050 | -1/Access | Spotted Striker 65063 | -1/Access | Destroyed Striker 65066 | -1/Access | Destroyed Striker 65068 | -1/Access | Sterilization system engaged 65078 | -1/Access | Spotted Striker 65095 | -1/Access | Spotted Striker 65095 | -1/Access | Spotted Executioner 65100 | -1/Access | Destroyed Striker 65108 | -1/Access | Destroyed Executioner 65126 | -1/Access | Spotted Striker 65130 | -1/Access | Destroyed Striker 65135 | -1/Access | Spotted Executioner 65135 | -1/Access | Spotted Striker 65142 | -1/Access | Spotted Striker 65142 | -1/Access | Destroyed Executioner 65152 | -1/Access | Destroyed Striker 65173 | -1/Access | Destroyed Striker 65220 | -1/Access | Destroyed 34 combat bots 65275 | -1/Access | Spotted Executioner 65275 | -1/Access | Spotted Striker 65275 | -1/Access | Destroyed Striker 65282 | -1/Access | Destroyed Executioner 65317 | -1/Access | Spotted Executioner 65325 | -1/Access | Destroyed Executioner 65340 | -1/Access | Spotted Striker 65340 | -1/Access | Spotted Striker 65363 | -1/Access | Destroyed Striker 65368 | -1/Access | Ambient heat levels rising (+10) 65382 | -1/Access | Spotted Executioner 65382 | -1/Access | Spotted Striker 65382 | -1/Access | Spotted Executioner 65425 | -1/Access | Destroyed Executioner 65437 | -1/Access | Spotted Striker 65437 | -1/Access | Spotted Striker 65438 | -1/Access | Destroyed Striker 65441 | -1/Access | System corruption reached 10% 65445 | -1/Access | Destroyed Striker 65455 | -1/Access | Destroyed Executioner 65465 | -1/Access | Destroyed Striker 65518 | -1/Access | Ambient heat levels rising (+10) 65533 | -1/Access | Destroyed 14 combat bots 65568 | -1/Access | Spotted Executioner 65600 | -1/Access | Destroyed Executioner 65668 | -1/Access | Ambient heat levels rising (+10) 65674 | -1/Access | Found Prototype Processor 65706 | -1/Access | Identified Exp. Core Analyzer (x2) 65818 | -1/Access | Ambient heat levels rising (+10) 65865 | -1/Access | Found Prototype Processor 65865 | -1/Access | Identified Exp. Terrain Scan Processor 65968 | -1/Access | Ambient heat levels rising (+10) 66118 | -1/Access | Ambient heat levels rising (+10) 66162 | -1/Access | Spotted B-99 Colossus 66225 | -1/Access | Destroyed B-99 Colossus 66243 | -1/Access | Found Prototype Ballistic Gun 66246 | -1/Access | Found Prototype Ballistic Gun 66268 | -1/Access | Ambient heat levels rising (+10) 66418 | -1/Access | Ambient heat levels rising (+10) 66453 | -1/Access | Identified Multirail (x2) 66568 | -1/Access | Ambient heat levels rising (+10) 66697 | -1/Access | Spotted B-99 Colossus 66718 | -1/Access | Ambient heat levels rising (+10) 66745 | -1/Access | Spotted B-99 Colossus 66868 | -1/Access | Ambient heat levels rising (+10) 67018 | -1/Access | Ambient heat levels rising (+10) 67057 | -1/Access | Discovered new exit (range 4) 67060 | -1/Access | Entered Command 67097 | -1/Command | Found Imp. Powered Armor 67099 | -1/Command | Found Imp. Powered Armor 67125 | -1/Command | High security lockdown imminent 67187 | -1/Command | Found Gamma Bomb Array 67190 | -1/Command | Found Gamma Bomb Array 67192 | -1/Command | Found Gamma Bomb Array 67195 | -1/Command | Found Gamma Bomb Array 67196 | -1/Command | Destroyed 8 combat bots 67197 | -1/Command | Found Gamma Bomb Array 67201 | -1/Command | Found Gamma Bomb Array 67205 | -1/Command | High security lockdown engaged 67205 | -1/Command | Found Gamma Bomb Array 67395 | -1/Command | Destroyed 15 combat bots 67493 | -1/Command | Destroyed 13 combat bots 67616 | -1/Command | Destroyed Executioner 67619 | -1/Command | Spotted Investigator 67620 | -1/Command | Destroyed Investigator 67649 | -1/Command | Destroyed 28 combat bots 67812 | -1/Command | Spotted Executioner 67812 | -1/Command | Spotted Executioner 67816 | -1/Command | Spotted Executioner 67817 | -1/Command | Destroyed Executioner 67818 | -1/Command | Destroyed Executioner 67820 | -1/Command | Spotted Investigator 67825 | -1/Command | Spotted Striker 67828 | -1/Command | Spotted Executioner 67831 | -1/Command | Destroyed Investigator 67834 | -1/Command | Destroyed Executioner 67837 | -1/Command | Destroyed Executioner 67875 | -1/Command | Destroyed 31 combat bots 68070 | -1/Command | Destroyed Striker 68070 | -1/Command | Destroyed Executioner 68078 | -1/Command | Spotted Striker 68078 | -1/Command | Spotted Striker 68084 | -1/Command | Destroyed Striker 68084 | -1/Command | Spotted Executioner 68084 | -1/Command | Spotted Executioner 68085 | -1/Command | Destroyed Striker 68090 | -1/Command | Destroyed Executioner 68100 | -1/Command | Spotted Striker 68100 | -1/Command | Spotted Executioner 68100 | -1/Command | Spotted Striker 68104 | -1/Command | Destroyed Executioner 68106 | -1/Command | Destroyed Executioner 68112 | -1/Command | Destroyed Striker 68113 | -1/Command | Destroyed Striker 68137 | -1/Command | Destroyed 44 combat bots 68140 | -1/Command | Lost 4 parts (1n1u2w) 68374 | -1/Command | Spotted Striker 68375 | -1/Command | Spotted Executioner 68375 | -1/Command | Spotted Striker 68375 | -1/Command | Spotted Executioner 68376 | -1/Command | Destroyed Striker 68376 | -1/Command | Spotted Executioner 68376 | -1/Command | Spotted Executioner 68377 | -1/Command | Spotted Striker 68379 | -1/Command | Destroyed Executioner 68379 | -1/Command | Destroyed Executioner 68380 | -1/Command | Destroyed Executioner 68380 | -1/Command | Destroyed Executioner 68380 | -1/Command | Destroyed Striker 68381 | -1/Command | Destroyed Striker 68406 | -1/Command | Destroyed 15 combat bots 69612 | -1/Command | Destroyed 8 combat bots 70110 | -1/Command | Spotted B-99 Colossus 70139 | -1/Command | Destroyed B-99 Colossus 70164 | -1/Command | Found Multirail 70601 | -1/Command | Found Unknown Device 70601 | -1/Command | Identified Adv. Force Booster 72928 | -1/Command | Spotted Combat Programmer 72930 | -1/Command | Spotted Combat Programmer 72931 | -1/Command | Destroyed Combat Programmer 72940 | -1/Command | Destroyed Combat Programmer 72965 | -1/Command | Spotted M Guard 73330 | -1/Command | Destroyed M Guard 73542 | -1/Command | Destroyed M Guard 73542 | -1/Command | All MAIN.C guards destroyed 73917 | -1/Command | Build established: Hauler-Tank 74370 | -1/Command | Build established: Hauler-Gunner 74460 | -1/Command | Found Corrupted Prototype Protection 74472 | -1/Command | Found Corrupted Prototype Reactor 74479 | -1/Command | Found Corrupted Prototype Reactor 74753 | -1/Command | Build established: Hauler-Executioner 74768 | -1/Command | Found Corrupted Exp. Core Analyzer 74774 | -1/Command | Found Corrupted Exp. Core Analyzer 75123 | -1/Command | Met MAIN.C 75131 | -1/Command | 0b10 Conduit disabled 75157 | -1/Command | Destroyed MAIN.C Shell 75159 | -1/Command | MAIN.C activated Command garrisons 75189 | -1/Command | Destroyed MAIN.C 75210 | -1/Command | Lost 8 parts (1n3u4w) 75232 | -1/Command | Identified Zero-point Reactor (x2) 75232 | -1/Command | Identified Hvy. Regenerative Plating 75232 | -1/Command | Discovered new exit (range 27) 75232 | -1/Command | Discovered new exit (range 108) 75232 | -1/Command | Extracted map data and part IDs from MAIN.C's data core 75255 | -1/Command | Spotted B-99 Colossus 75269 | -1/Command | Destroyed B-99 Colossus 75889 | -1/Command | Found Exp. System Purifier 77939 | -1/Command | Found Multirail 78651 | -1/Command | Build established: Tank 79561 | -1/Command | Phase Generator disabled 81148 | -1/Command | Found Exp. Targeting Computer 81152 | -1/Command | Found Adv. Kinecellerator 81287 | -1/Command | Found Multirail 81291 | -1/Command | Found Exp. Target Analyzer 81790 | -1/Command | Found Exp. Core Analyzer 81814 | -1/Command | Found Exp. Core Analyzer 81827 | -1/Command | Found Exp. Core Analyzer 81831 | -1/Command | Found Exp. Targeting Computer 81839 | -1/Command | Found Exp. Core Analyzer 83366 | -1/Command | Found Corrupted Ragnarok Missile Launcher 83709 | -1/Command | Found Exp. Targeting Computer 83745 | -1/Command | Found Adv. Kinecellerator 84229 | -1/Command | Build established: Executioner 84932 | -1/Command | Build established: Hauler-Executioner 85747 | -1/Command | Build established: Scavenger-Executioner 86568 | -1/Command | Build established: Scavenger-Mutant 87197 | -1/Command | Build established: Scavenger-Executioner 88825 | -1/Command | Found Vortex Chain Reactor 88827 | -1/Command | Found Zero-point Reactor 88978 | -1/Command | Found Exp. Force Field 88980 | -1/Command | Found Exp. EM Shield 90544 | -1/Command | Found Exp. Melee Analysis Suite 91265 | -1/Command | Build established: Hauler-Executioner 92200 | -1/Command | Found Exp. Cloaking Device 92205 | -1/Command | Found Singularity Reactor 94189 | -1/Command | Found Quantum Capacitor 94333 | -1/Command | Found Corrupted Quantum Capacitor 94701 | -1/Command | Found Corrupted Quantum Capacitor 97162 | -1/Command | Found Active Sensor Suite 100205 | -1/Command | Found Exp. Targeting Computer 103042 | -1/Command | Found Quantum Capacitor 103068 | -1/Command | Found Unknown Device 103068 | -1/Command | Identified Launcher Loader 104245 | -1/Command | Found Exp. ECM Suite 104459 | -1/Command | Found Quantum Capacitor 104461 | -1/Command | Found Quantum Capacitor 105090 | -1/Command | Found Corrupted Quantum Capacitor 105628 | -1/Command | Found Quantum Capacitor 107252 | -1/Command | Found Quantum Capacitor 107765 | -1/Command | Build established: Hauler-Tank 107894 | -1/Command | Fired Sigix Terminator 108277 | -1/Command | Build established: Mutant 108829 | -1/Command | Build established: Golem 109142 | -1/Command | Crushed by falling debris 109144 | -1/Command | Crushed by falling debris 109168 | -1/Command | Crushed by falling debris 109170 | -1/Command | Crushed by falling debris 109638 | -1/Command | Build established: Hauler-Golem 110809 | -1/Command | Build established: Hauler-Mutant 112179 | -1/Command | System corruption reached 30% 112635 | -1/Command | Found Active Sensor Suite 114648 | -1/Command | Found Quantum Capacitor 115370 | -1/Command | Found Corrupted Adv. Kinecellerator 116836 | -1/Command | Found Unknown Launcher 116854 | -1/Command | Identified Fusion Bomb Launcher 121849 | -1/Command | Build established: Scavenger-Mutant 122354 | -1/Command | Core integrity fell below 50% 122475 | -1/Command | Build established: Scavenger-Executioner 122739 | *** | Heading to fleet! Last Messages --------------- 22516_ System corrupted: Component data lost. 22531_ YCMDIBRDRCL V2=&XKQFUBGFJ1&:5 22546_ System corrupted: Component data lost. 22561_ System corrupted: Matter fused (-5). 22576_ System corrupted: Heat flow error (+164). 22583_ Acquired Plasma Lance. 22591_ System corrupted: Heat flow error (+123). 22600_ Acquired Exp. Jetlance. 22606_ System corrupted: Component data lost. 22621_ 2DATX6 HN4GZHV7EVE HJXM5